Workbook

Sheet Липецк
A2: Расчёт пропускной способности Центров питания филиала ОАО "МРСК Центра" Липецкэнерго по итогам зимнего замера максимума нагрузки 2012 г.
K3: таблица 1
A4: №п/п | B4: Наименование объекта центра питания, класс напряжения | C4: Текущий дефицит | M4: Примечание | N4: cosφ | P4: №п/п | Q4: Наименование объекта центра питания, класс напряжения | R4: Ожидаемый дефицит /профицит | AB4: Примечание
C5: Установленная мощность трансформаторов Sуст. с указанием их количества, шт/ МВА | E5: Суммарная полная мощность ЦП по результатам замеров максимума нагрузки Sмах , МВА | F5: Полная мощность, перераспределяемая в соответствии с ПТЭ, МВА за время | H5: Полная мощность с учётом перераспределения, МВА | I5: Ограничивающие факторы, МВА | J5: Допустимая нагрузка расчётная в режиме n-1, МВА | K5: Дефицит/профицит ЦП, МВА | R5: Установленная мощность трансформаторов Sуст. с указанием их количества в перспективе при условии выполнения ТУ на ТП или других мероприятий по реконструкции ЦП шт/ МВА | S5: Дополнительная мощность по выданным ТУ на ТП, МВА | T5: Ожидаемая нагрузка ЦП, МВА | U5: Полная перераспределяемая мощность в перспективе с учетом выполнения мероприятий ТУ или других мероприятий по реконструкции сети инвестпрограмм и др. | W5: Полная мощность с учётом перераспределения, МВА | X5: Ограничивающие факторы, МВА | Y5: Допустимая нагрузка расчётная в режиме n-1, МВА | Z5: Дефицит /профицит ЦП, МВА
F6: МВА | G6: Мин. | U6: МВА | V6: Мин.
A7: 1 | B7: 2 | C7: 3 | E7: 4 | F7: 5 | G7: 6 | H7: 7 | I7: 8 | J7: 9 | K7: 10 | L7: 11 | M7: 12 | P7: 1 | Q7: 2 | R7: 3 | S7: 4 | T7: 5 | U7: 6 | V7: 7 | W7: 8 | X7: 9 | Y7: 10 | Z7: 11 | AA7: 12 | AB7: 13
A8: Однотрансформаторные ПС | P8: Однотрансформаторные ПС
A9: 1 | B9: ПС 110/10кВ Лев Толстой | C9: 10 | D9: 10 | E9: 2.5 | F9: 2.5 | G9: 60 | H9: =E9-F9 -> 0 | I9: 0 | J9: =F9 -> 2.5 | K9: =J9-E9 -> 0 | L9: =K9 -> 0 | M9: открыт | N9: 0.94 | P9: 1 | Q9: ПС 110/10кВ Лев Толстой | R9: 10 | S9: 0.821 | T9: =S9+E9 -> 3.321 | U9: 2.5 | V9: 60 | W9: =T9-U9 -> 0.821 | X9: 0 | Y9: =U9 -> 2.5 | Z9: =Y9-T9 -> -0.821 | AA9: =Z9 -> -0.821 | AB9: закрыт
A10: 2 | B10: ПС 110/10 кВ Двуречки | C10: 6.3 | D10: 6.3 | E10: 1.93 | F10: 0 | G10: 0 | H10: 1.93 | I10: 0 | J10: =F10 -> 0 | K10: -1.93 | L10: =K10 -> -1.93 | M10: закрыт | N10: 0.964 | P10: 2 | Q10: ПС 110/10 кВ Двуречки | R10: 6.3 | S10: 1.041 | T10: 2.971 | U10: 0 | V10: 0 | W10: =T10-U10 -> 2.971 | X10: 0 | Y10: =U10 -> 0 | Z10: =Y10-T10 -> -2.971 | AA10: =Z10 -> -2.971 | AB10: закрыт
A11: 3 | B11: ПС 35/10 кВ Веселое | C11: 2.5 | D11: 2.5 | E11: 0.1 | F11: 0.07 | G11: 100 | H11: 0.03 | I11: 0 | J11: 0.07 | K11: -0.03 | L11: -0.03 | M11: открыт | N11: 0.91 | P11: 3 | Q11: ПС 35/10 кВ Веселое | R11: 2.5 | S11: 0.041 | T11: 0.141 | U11: 0.07 | V11: 100 | W11: 0.071 | X11: 0 | Y11: 0.07 | Z11: -0.071 | AA11: -0.071 | AB11: открыт
A12: 4 | B12: ПС 35/10 кВ Кр.Пальна | C12: 3.2 | D12: 3.2 | E12: 0.79 | F12: 0.4 | G12: 180 | H12: 0.39 | I12: 0 | J12: 0.4 | K12: -0.39 | L12: -0.39 | M12: закрыт | N12: 0.93 | P12: 4 | Q12: ПС 35/10 кВ Кр.Пальна | R12: 3.2 | S12: 0.519 | T12: 1.309 | U12: 0.4 | V12: 180 | W12: 0.909 | X12: 0 | Y12: 0.4 | Z12: -0.909 | AA12: -0.909 | AB12: закрыт
A13: 5 | B13: ПС 35/10 кВ Каменка | C13: 2.5 | D13: 2.5 | E13: 0.65 | F13: 0 | G13: 0 | H13: 0.65 | I13: 0 | J13: 0 | K13: -0.65 | L13: -0.65 | M13: закрыт | N13: 0.94 | P13: 5 | Q13: ПС 35/10 кВ Каменка | R13: 2.5 | S13: 0.334 | T13: 0.984 | U13: 0 | V13: 0 | W13: 0.984 | X13: 0 | Y13: 0 | Z13: -0.984 | AA13: -0.984 | AB13: закрыт
A14: 6 | B14: ПС 35/10 кВ Красотыновка | C14: 2.5 | D14: 2.5 | E14: 0.79 | F14: 0.29 | G14: 60 | H14: 0.5 | I14: 0 | J14: 0.29 | K14: -0.5 | L14: -0.5 | M14: закрыт | N14: 0.9 | P14: 6 | Q14: ПС 35/10 кВ Красотыновка | R14: 2.5 | S14: 0.54 | T14: 1.33 | U14: 0.29 | V14: 60 | W14: 1.04 | X14: 0 | Y14: 0.29 | Z14: -1.04 | AA14: -1.04 | AB14: закрыт
A15: 7 | B15: ПС 35/10 кВ Озёрки | C15: 2.5 | D15: 2.5 | E15: 0.110028 | F15: 0 | G15: 0 | H15: 0.110028 | I15: 0 | J15: 0 | K15: -0.110028 | L15: -0.110028 | M15: открыт | N15: 0.85 | P15: 7 | Q15: ПС 35/10 кВ Озёрки | R15: 2.5 | T15: 0.110028 | U15: 0 | V15: 0 | W15: 0.110028 | X15: 0 | Y15: 0 | Z15: -0.110028 | AA15: -0.110028 | AB15: открыт
A16: 8 | B16: ПС 35/10 кВ Панкратовка | C16: 2.5 | D16: 2.5 | E16: 0.76 | F16: 0.05 | G16: 90 | H16: 0.71 | I16: 0 | J16: 0.05 | K16: -0.71 | L16: -0.71 | M16: закрыт | N16: 0.85 | P16: 8 | Q16: ПС 35/10 кВ Панкратовка | R16: 2.5 | S16: 0.015 | T16: 0.775 | U16: 0.05 | V16: 90 | W16: 0.725 | X16: 0 | Y16: 0.05 | Z16: -0.725 | AA16: -0.725 | AB16: закрыт
A17: 9 | B17: ПС 35/10 кВ Преображенье | C17: 2.5 | D17: 2.5 | E17: 0.64 | F17: 0.16 | G17: 0 | H17: 0.48 | I17: 0 | J17: 0.16 | K17: -0.48 | L17: -0.48 | M17: закрыт | N17: 0.86 | P17: 9 | Q17: ПС 35/10 кВ Преображенье | R17: 2.5 | S17: 0.008 | T17: 0.648 | U17: 0.16 | V17: 0 | W17: 0.488 | X17: 0 | Y17: 0.16 | Z17: -0.488 | AA17: -0.488 | AB17: закрыт
A18: 10 | B18: ПС 35/10 кВ Яковлево | C18: 2.5 | D18: 2.5 | E18: 0.92 | F18: 0 | G18: 0 | H18: 0.92 | I18: 0 | J18: 0 | K18: -0.92 | L18: -0.92 | M18: закрыт | N18: 0.98 | P18: 10 | Q18: ПС 35/10 кВ Яковлево | R18: 2.5 | S18: 0.468 | T18: 1.388 | U18: 0 | V18: 0 | W18: 1.388 | X18: 0 | Y18: 0 | Z18: -1.388 | AA18: -1.388 | AB18: закрыт
A19: 11 | B19: ПС 35/10 кВ Первомайская | C19: 2.5 | D19: 2.5 | E19: 0.91 | F19: 0 | G19: 0 | H19: =E19-F19 -> 0.91 | I19: 0 | J19: 0 | K19: =J19-E19 -> -0.91 | L19: -0.91 | M19: закрыт | N19: 0.88 | P19: 11 | Q19: ПС 35/10 кВ Первомайская | R19: 2.5 | S19: 0.028 | T19: =S19+E19 -> 0.938 | U19: 0 | V19: 0 | W19: 0.938 | X19: 0 | Y19: 0 | Z19: -0.938 | AA19: -0.938 | AB19: закрыт
A20: 12 | B20: ПС 35/10 кВ Каменная Лубна | C20: 2.5 | D20: 2.5 | E20: 1.24 | F20: 1.1 | G20: 90 | H20: 0.14 | I20: 0 | J20: 1.1 | K20: -0.14 | L20: -0.14 | M20: закрыт | N20: 0.96 | P20: 12 | Q20: ПС 35/10 кВ Каменная Лубна | R20: 2.5 | S20: 0.071 | T20: 1.311 | U20: 1.1 | V20: 90 | W20: 0.211 | X20: 0 | Y20: 1.1 | Z20: -0.211 | AA20: -0.211 | AB20: закрыт
A21: 13 | B21: ПС 35/10 кВ Знаменка | C21: 2.5 | D21: 2.5 | E21: 0.73 | F21: 0 | G21: 0 | H21: 0.73 | I21: 0 | J21: 0 | K21: -0.73 | L21: -0.73 | M21: закрыт | N21: 0.93 | P21: 13 | Q21: ПС 35/10 кВ Знаменка | R21: 2.5 | T21: 0.73 | U21: 0 | V21: 0 | W21: 0.73 | X21: 0 | Y21: 0 | Z21: -0.73 | AA21: -0.73 | AB21: закрыт
A22: 14 | B22: ПС 35/10 кВ Пиково | C22: 2.5 | D22: 2.5 | E22: 0.55 | F22: 0.34 | G22: 120 | H22: 0.21 | I22: 0 | J22: 0.34 | K22: -0.21 | L22: -0.21 | M22: закрыт | N22: 0.87 | P22: 14 | Q22: ПС 35/10 кВ Пиково | R22: 2.5 | S22: 0.027 | T22: 0.577 | U22: 0.34 | V22: 120 | W22: 0.237 | X22: 0 | Y22: 0.34 | Z22: -0.237 | AA22: -0.237 | AB22: закрыт
A23: 15 | B23: ПС 35/10 кВ Никольское | C23: 4 | D23: 4 | E23: 0.2727272727 | F23: 0.1 | G23: 120 | H23: 0.1727272727 | I23: 0 | J23: 0.1 | K23: -0.1727272727 | L23: -0.1727272727 | M23: закрыт | N23: 0.98 | P23: 15 | Q23: ПС 35/10 кВ Никольское | R23: 4 | S23: 0.016 | T23: 0.2887272727 | U23: 0.1 | V23: 120 | W23: 0.1887272727 | X23: 0 | Y23: 0.1 | Z23: -0.1887272727 | AA23: -0.1887272727 | AB23: закрыт
A24: 16 | B24: ПС 35/10 кВ Песковатка | C24: 1.6 | D24: 1.6 | E24: 0.86 | F24: 0.22 | G24: 30 | H24: 0.64 | I24: 0 | J24: 0.22 | K24: -0.64 | L24: -0.64 | M24: закрыт | N24: 0.98 | P24: 16 | Q24: ПС 35/10 кВ Песковатка | R24: 1.6 | S24: 0.007 | T24: 0.867 | U24: 0.22 | V24: 30 | W24: 0.647 | X24: 0 | Y24: 0.22 | Z24: -0.647 | AA24: -0.647 | AB24: закрыт
A25: 17 | B25: ПС 35/6 кВ Дружба | C25: 5.6 | D25: 5.6 | E25: КРУНН-6кВ не наши | P25: 17 | Q25: ПС 35/6 кВ Дружба | R25: 5.6 | T25: =S25 -> 0
A26: 18 | B26: ПС 35/10 кВ СОМ | C26: 1.6 | D26: 1.6 | E26: 0.173 | F26: 0 | G26: 0 | H26: =E26-F26 -> 0.173 | I26: 0 | J26: 0 | K26: =J26-E26 -> -0.173 | L26: -0.173 | M26: открыт | N26: 0.85 | P26: 18 | Q26: ПС 35/10 кВ СОМ | R26: 1.6 | T26: =S26+E26 -> 0.173 | U26: 0 | V26: 0 | W26: 0.173 | X26: 0 | Y26: 0 | Z26: =Y26-T26 -> -0.173 | AA26: =Z26 -> -0.173 | AB26: открыт
A27: 19 | B27: ПС 35/6 кВ Новониколаевка | C27: 4 | D27: 4 | E27: 0.74 | F27: 0 | G27: 0 | H27: 0.74 | I27: 0 | J27: 0 | K27: -0.74 | L27: -0.74 | M27: закрыт | N27: 0.971 | P27: 19 | Q27: ПС 35/6 кВ Новониколаевка | R27: 4 | S27: 0.015 | T27: 0.755 | U27: 0 | V27: 0 | W27: 0.755 | X27: 0 | Y27: 0 | Z27: -0.755 | AA27: -0.755 | AB27: закрыт
A28: 20 | B28: ПС 35/10 кВ Синдякино | C28: 2.5 | D28: 2.5 | E28: 0.25 | F28: 0 | G28: 0 | H28: 0.25 | I28: 0 | J28: 0 | K28: -0.25 | L28: -0.25 | M28: закрыт | N28: 0.533 | P28: 20 | Q28: ПС 35/10 кВ Синдякино | R28: 2.5 | S28: 0.156 | T28: 0.406 | U28: 0 | V28: 0 | W28: 0.406 | X28: 0 | Y28: 0 | Z28: -0.406 | AA28: -0.406 | AB28: закрыт
A29: 21 | B29: ПС 35/10 кВ Курино | C29: 2.5 | D29: 2.5 | E29: 0.58 | F29: 0.1 | G29: 40 | H29: 0.48 | I29: 0 | J29: 0.1 | K29: -0.48 | L29: -0.48 | M29: закрыт | N29: 0.924 | P29: 21 | Q29: ПС 35/10 кВ Курино | R29: 2.5 | S29: 1.472 | T29: 2.052 | U29: 0.1 | V29: 40 | W29: 1.952 | X29: 0 | Y29: 0.1 | Z29: -1.952 | AA29: -1.952 | AB29: закрыт
A30: 22 | B30: ПС 35/10 кВ Новодубовое | C30: 2.5 | D30: 2.5 | E30: 1.17 | F30: 0 | G30: 0 | H30: 1.17 | I30: 0 | J30: 0 | K30: -1.17 | L30: -1.17 | M30: закрыт | N30: 0.694 | P30: 22 | Q30: ПС 35/10 кВ Новодубовое | R30: 2.5 | S30: 0.061 | T30: 1.231 | U30: 0 | V30: 0 | W30: 1.231 | X30: 0 | Y30: 0 | Z30: -1.231 | AA30: -1.231 | AB30: закрыт
A31: 23 | B31: ПС 35/10 кВ Березовка | C31: 2.5 | D31: 2.5 | E31: 0 | F31: 0 | G31: 0 | H31: 0 | I31: 0 | J31: 0 | K31: 0 | L31: 0 | M31: открыт | N31: 0.694 | P31: 23 | Q31: ПС 35/10 кВ Березовка | R31: 2.5 | T31: 0 | U31: 0 | V31: 0 | W31: 0 | X31: 0 | Y31: 0 | Z31: 0 | AA31: 0 | AB31: закрыт
A32: 24 | B32: ПС 35/6 кВ Карьер | C32: 4 | D32: 4 | E32: 0.04 | I32: 0 | J32: =F32 -> 0 | K32: =J32-E32 -> -0.04 | L32: =K32 -> -0.04 | M32: открыт | N32: 0.394 | P32: 24 | Q32: ПС 35/6 кВ Карьер | R32: 4 | T32: 0.04
A33: 25 | B33: ПС 110/35/10 кВ Чаплыгин | C33: 6.3 | D33: 6.3 | E33: 4.7 | F33: 2 | G33: 120 | H33: =E33-F33 -> 2.7 | I33: 0 | J33: =F33 -> 2 | K33: =J33-E33 -> -2.7 | L33: =K33 -> -2.7 | M33: закрыт | N33: 0.89 | P33: 25 | Q33: ПС 110/35/10 кВ Чаплыгин | R33: 6.3 | S33: 0.675 | T33: 5.375 | U33: 2 | V33: 120 | W33: =T33-U33 -> 3.375 | X33: 0 | Y33: =U33 -> 2 | Z33: =Y33-T33 -> -3.375 | AA33: =Z33 -> -3.375 | AB33: закрыт
A34: Двух- и более трансформаторные ПС (на два уровня напряжения) | P34: Двух- и более трансформаторные ПС (на два уровня напряжения)
A35: 26 | B35: ПС 110/6 кВ Агрегатная | C35: 16+16 | D35: 32 | E35: 16.56 | F35: 0.77 | G35: 30 | H35: =E35-F35 -> 15.79 | I35: 0 | J35: =16*1.05 -> 16.8 | K35: =J35-I35-H35 -> 1.01 | L35: =K35 -> 1.01 | M35: открыт | N35: 0.94 | P35: 26 | Q35: ПС 110/6 кВ Агрегатная | R35: 16+16 | S35: 2.291 | T35: =S35+E35 -> 18.851 | U35: 0.77 | V35: 30 | W35: =T35-U35 -> 18.081 | X35: 0 | Y35: 16.8 | Z35: =Y35-X35-W35 -> -1.281 | AA35: =Z35 -> -1.281 | AB35: закрыт
A36: 27 | B36: ПС 110/6 кВ Западная | C36: 40+40 | D36: 80 | E36: 24.3 | F36: 1.3 | G36: 30 | H36: 23 | I36: 0 | J36: =40*1.05 -> 42 | K36: 19 | L36: 19 | M36: открыт | N36: 0.91 | P36: 27 | Q36: ПС 110/6 кВ Западная | R36: 40+40 | S36: 6.442 | T36: 30.742 | U36: 1.3 | V36: 30 | W36: =T36-U36 -> 29.442 | X36: 0 | Y36: 42 | Z36: =Y36-X36-W36 -> 12.558 | AA36: =Z36 -> 12.558 | AB36: открыт
A37: 28 | B37: ПС 110/10 кВ Кашары | C37: 2,5+6,3 | D37: 8.8 | E37: 2.23 | F37: 0.96 | G37: 60 | H37: 1.27 | I37: 0 | J37: =2.5*1.05 -> 2.625 | K37: 1.355 | L37: 1.355 | M37: открыт | N37: 0.98 | P37: 28 | Q37: ПС 110/10 кВ Кашары | R37: 2,5+6,3 | S37: 0.313 | T37: 2.543 | U37: 0.96 | V37: 60 | W37: 1.583 | X37: 0 | Y37: 2.625 | Z37: 1.042 | AA37: 1.042 | AB37: открыт
A38: 29 | B38: ПС 110/10кВ Тербунский гончар | C38: 25+25 | D38: =25+25 -> 50 | E38: 0.42 | F38: 0 | G38: 0 | H38: 0.42 | I38: 0 | J38: =25*1.05 -> 26.25 | K38: =J38-I38-H38 -> 25.83 | L38: =K38 -> 25.83 | M38: открыт | P38: 29 | Q38: ПС 110/10кВ Тербунский гончар | R38: 25+25 | S38: 13.15 | T38: =S38+E38 -> 13.57 | U38: 0 | V38: 0 | W38: =T38-U38 -> 13.57 | X38: 0 | Y38: 26.25 | Z38: =Y38-X38-W38 -> 12.68 | AA38: =Z38 -> 12.68 | AB38: открыт
A39: 30 | B39: ПС 110/6 кВ Табак | C39: 16+16 | D39: 32 | E39: 8.05 | F39: 3.1 | G39: 20 | H39: 4.95 | I39: 0 | J39: =16*1.05 -> 16.8 | K39: 11.85 | L39: 11.85 | M39: открыт | N39: 0.92 | P39: 30 | Q39: ПС 110/6 кВ Табак | R39: 16+16 | S39: 0.188 | T39: 8.238 | U39: 3.1 | V39: 20 | W39: 5.138 | X39: 0 | Y39: 16.8 | Z39: 11.662 | AA39: 11.662 | AB39: открыт
A40: 31 | B40: ПС 110/10 кВ Лукошкино | C40: 10+2,5 | D40: 12.5 | E40: 0.94 | F40: 0.3 | G40: 30 | H40: 0.64 | I40: 0 | J40: =2.5*1.05 -> 2.625 | K40: 1.985 | L40: 1.985 | M40: открыт | N40: 0.95 | P40: 31 | Q40: ПС 110/10 кВ Лукошкино | R40: 10+2,5 | S40: 0.035 | T40: 0.975 | U40: 0.3 | V40: 30 | W40: 0.675 | X40: 0 | Y40: 2.625 | Z40: 1.95 | AA40: 1.95 | AB40: открыт
A41: 32 | B41: ПС 110/10кВ Нива | C41: 10+10 | D41: 20 | E41: 7.3 | F41: 2.6 | G41: 120 | H41: 4.7 | I41: 0 | J41: =10*1.05 -> 10.5 | K41: 5.8 | L41: 5.8 | M41: открыт | N41: 0.91 | P41: 32 | Q41: ПС 110/10кВ Нива | R41: 10+10 | S41: 0.457 | T41: 7.757 | U41: 2.6 | V41: 120 | W41: 5.157 | X41: 0 | Y41: 10.5 | Z41: 5.343 | AA41: 5.343 | AB41: открыт
A42: 33 | B42: ПС 110/10 кВ Ольховец | C42: 2,5+2,5 | D42: 5 | E42: 1.56 | F42: 0 | G42: 0 | H42: 1.56 | I42: 0 | J42: =2.5*1.05 -> 2.625 | K42: 1.065 | L42: 1.065 | M42: открыт | N42: 0.93 | P42: 33 | Q42: ПС 110/10 кВ Ольховец | R42: 2,5+2,5 | S42: 0.207 | T42: 1.767 | U42: 0 | V42: 0 | W42: 1.767 | X42: 0 | Y42: 2.625 | Z42: 0.858 | AA42: 0.858 | AB42: открыт
A43: 34 | B43: ПС 110/10 кВ Куймань | C43: 2,5+2,5 | D43: 5 | E43: 0.8 | F43: 0 | G43: 0 | H43: 0.8 | I43: 0 | J43: =2.5*1.05 -> 2.625 | K43: 1.825 | L43: 1.825 | M43: открыт | N43: 0.95 | P43: 34 | Q43: ПС 110/10 кВ Куймань | R43: 2,5+2,5 | S43: 1.052 | T43: 1.852 | U43: 0 | V43: 0 | W43: 1.852 | X43: 0 | Y43: 2.625 | Z43: 0.773 | AA43: 0.773 | AB43: открыт
A44: 35 | B44: ПС 110/10 кВ Лутошкино | C44: 2,5+2,5 | D44: 5 | E44: 0.09 | F44: 0.09 | G44: 60 | H44: 0 | I44: 0 | J44: =2.5*1.05 -> 2.625 | K44: 2.625 | L44: 2.625 | M44: открыт | N44: 0.94 | P44: 35 | Q44: ПС 110/10 кВ Лутошкино | R44: 2,5+2,5 | S44: 0.023 | T44: 0.113 | U44: 0.09 | V44: 60 | W44: 0.023 | X44: 0 | Y44: 2.625 | Z44: 2.602 | AA44: 2.602 | AB44: открыт
A45: 36 | B45: ПС 110/10 кВ Круглое | C45: 2,5+2,5 | D45: 5 | E45: 0.4 | F45: 0.1 | G45: 60 | H45: 0.3 | I45: 0 | J45: =2.5*1.05 -> 2.625 | K45: 2.325 | L45: 2.325 | M45: открыт | N45: 0.93 | P45: 36 | Q45: ПС 110/10 кВ Круглое | R45: 2,5+2,5 | T45: 0.4 | U45: 0.1 | V45: 60 | W45: 0.3 | X45: 0 | Y45: 2.625 | Z45: 2.325 | AA45: 2.325 | AB45: открыт
A46: 37 | B46: ПС 110/10/6 кВ Юго-Западная | C46: 40+40 | D46: 80 | E46: 42.2 | F46: 3.2 | G46: 100 | H46: 39 | I46: 0 | J46: =40*1.05 -> 42 | K46: 3 | L46: 3 | M46: открыт | N46: 0.97 | P46: 37 | Q46: ПС 110/10/6 кВ Юго-Западная | R46: 40+40 | S46: 23.725 | T46: 65.925 | U46: 3.2 | V46: 100 | W46: 62.725 | X46: 0 | Y46: 42 | Z46: -20.725 | AA46: -20.725 | AB46: закрыт
A47: 38 | B47: ПС 110/6 кВ Привокзальная | C47: 20+20+25 | D47: 65 | E47: 45.14 | F47: 1.38 | G47: 30 | H47: 43.76 | I47: 0 | J47: =40*1.05 -> 42 | K47: -1.76 | L47: -1.76 | M47: закрыт | N47: 0.96 | P47: 38 | Q47: ПС 110/6 кВ Привокзальная | R47: 20+20+25 | S47: 0.357 | T47: 45.497 | U47: 1.38 | V47: 30 | W47: 44.117 | X47: 0 | Y47: 42 | Z47: -2.117 | AA47: -2.117 | AB47: закрыт
A48: 39 | B48: ПС 110/10/6 кВ Южная | C48: 40+40 | D48: 80 | E48: 42.04 | F48: 3 | G48: 240 | H48: 39.04 | I48: 0 | J48: =40*1.05 -> 42 | K48: 2.96 | L48: 2.96 | M48: открыт | N48: 0.98 | P48: 39 | Q48: ПС 110/10/6 кВ Южная | R48: 40+40 | S48: 4.871 | T48: 46.911 | U48: 3 | V48: 240 | W48: 43.911 | X48: 0 | Y48: 42 | Z48: -1.911 | AA48: -1.911 | AB48: закрыт
A49: 40 | B49: ПС 110/6 кВ Ситовка | C49: 10+10 | D49: 20 | E49: 3.79 | F49: 0.84 | G49: 60 | H49: 2.95 | I49: 0 | J49: 10.5 | K49: 7.55 | L49: 7.55 | M49: открыт | N49: 0.822 | P49: 40 | Q49: ПС 110/6 кВ Ситовка | R49: 10+10 | T49: 3.79 | U49: 0.84 | V49: 60 | W49: 2.95 | X49: 0 | Y49: 10.5 | Z49: 7.55 | AA49: 7.55 | AB49: открыт
A50: 41 | B50: ПС 110/6 кВ ЛТП | C50: 6,3+10 | D50: 16.3 | E50: 2.49 | F50: 0 | G50: 0 | H50: 2.49 | I50: 0 | J50: =6.3*1.05 -> 6.615 | K50: 4.125 | L50: 4.125 | M50: открыт | N50: 0.932 | P50: 41 | Q50: ПС 110/6 кВ ЛТП | R50: 6,3+10 | S50: 0.014 | T50: 2.504 | U50: 0 | V50: 0 | W50: 2.504 | X50: 0 | Y50: 6.615 | Z50: 4.111 | AA50: 4.111 | AB50: открыт
A51: 42 | B51: ПС 110/6 кВ КПД | C51: 10+16 | D51: =10+16 -> 26 | E51: 4.67 | F51: 0 | G51: 0 | H51: 4.67 | I51: 0 | J51: 10.5 | K51: 5.83 | L51: 5.83 | M51: открыт | N51: 0.93 | P51: 42 | Q51: ПС 110/6 кВ КПД | R51: 10+16 | S51: 2.426 | T51: 7.096 | U51: 0 | V51: 0 | W51: 7.096 | X51: 0 | Y51: 10.5 | Z51: 3.404 | AA51: 3.404 | AB51: открыт
A52: 43 | B52: ПС 110/10 кВ Октябрьская | C52: 40+40 | D52: 80 | E52: 27.82 | F52: 0.6 | G52: 45 | H52: 27.22 | I52: 0 | J52: =40*1.05 -> 42 | K52: 14.78 | L52: 14.78 | M52: открыт | N52: 0.985 | P52: 43 | Q52: ПС 110/10 кВ Октябрьская | R52: 40+40 | S52: 0.648 | T52: 28.468 | U52: 0.6 | V52: 45 | W52: 27.868 | X52: 0 | Y52: 42 | Z52: 14.132 | AA52: 14.132 | AB52: открыт
A53: 44 | B53: ПС 110/10 кВ Манежная | C53: 40+40 | D53: =40+40 -> 80 | E53: 1.04 | F53: 0 | G53: 0 | H53: 1.04 | I53: 0 | J53: =40*1.05 -> 42 | K53: =J53-I53-H53 -> 40.96 | L53: =K53 -> 40.96 | M53: открыт | N53: 0.85 | P53: 44 | Q53: ПС 110/10 кВ Манежная | R53: 40+40 | S53: 39.501 | T53: =S53+E53 -> 40.541 | U53: 0 | V53: 0 | W53: =T53-U53 -> 40.541 | X53: 0 | Y53: 42 | Z53: =Y53-X53-W53 -> 1.459 | AA53: =Z53 -> 1.459 | AB53: открыт
A54: 45 | B54: ПС 110/10 кВ Университетская | C54: 40+40 | D54: 80 | E54: 0.7 | F54: 0 | G54: 0 | H54: 0.7 | I54: 0 | J54: 42 | K54: 41.3 | L54: 41.3 | M54: открыт | N54: 0.85 | P54: 45 | Q54: ПС 110/10 кВ Университетская | R54: 40+40 | S54: 42.8 | T54: 43.5 | U54: 0 | V54: 0 | W54: 43.5 | X54: 0 | Y54: 42 | Z54: -1.5 | AA54: -1.5 | AB54: закрыт
A55: 46 | B55: ПС 110/6 кВ Тепличная | C55: 15+15 | D55: 30 | E55: 6.4 | F55: 1.2 | G55: 60 | H55: 5.2 | I55: 0 | J55: =15*1.05 -> 15.75 | K55: 10.55 | L55: 10.55 | M55: открыт | N55: 0.97 | P55: 46 | Q55: ПС 110/6 кВ Тепличная | R55: 15+15 | S55: 4.24 | T55: 10.64 | U55: 1.2 | V55: 60 | W55: 9.44 | X55: 0 | Y55: 15.75 | Z55: 6.31 | AA55: 6.31 | AB55: открыт
A56: 47 | B56: ПС 110/6 кВ Трубная-2 | C56: 25+25 | D56: 50 | E56: 5 | F56: 0 | G56: 0 | H56: 5 | I56: 0 | J56: =25*1.05 -> 26.25 | K56: =J56-I56-H56 -> 21.25 | L56: =K56 -> 21.25 | M56: открыт | N56: 0.97 | P56: 47 | Q56: ПС 110/6 кВ Трубная-2 | R56: 25+25 | S56: 20.64 | T56: 25.64 | U56: 0 | V56: 0 | W56: 25.64 | X56: 0 | Y56: =25*1.05 -> 26.25 | Z56: 0.61 | AA56: 0.61 | AB56: открыт
A57: 48 | B57: ПС 110/6 кВ ГПП-2 ЛТЗ | C57: 63+63 | D57: 126 | E57: 14.13 | F57: 0 | G57: 0 | H57: 14.13 | I57: 0 | J57: =63*1.05 -> 66.15 | K57: 52.02 | L57: 52.02 | M57: открыт | N57: 0.955 | P57: 48 | Q57: ПС 110/6 кВ ГПП-2 ЛТЗ | R57: 63+63 | S57: 7.275 | T57: 21.405 | U57: 0 | V57: 0 | W57: 21.405 | X57: 0 | Y57: 66.15 | Z57: 44.745 | AA57: 44.745 | AB57: открыт
A58: 49 | B58: ПС 35/10 кВ Авангард | C58: 4+4 | D58: 8 | E58: 1.3 | F58: 1.1 | G58: 40 | H58: 0.2 | I58: 0 | J58: =4*1.05 -> 4.2 | K58: 4 | L58: 4 | M58: открыт | N58: 0.85 | P58: 49 | Q58: ПС 35/10 кВ Авангард | R58: 4+4 | S58: 0.028 | T58: 1.328 | U58: 1.1 | V58: 40 | W58: 0.228 | X58: 0 | Y58: 4.2 | Z58: 3.972 | AA58: 3.972 | AB58: открыт
A59: 50 | B59: ПС 35/10 кВ Афанасьево | C59: 2,5+2,5 | D59: 5 | E59: 1.71 | F59: 0 | G59: 0 | H59: 1.71 | I59: 0 | J59: =2.5*1.05 -> 2.625 | K59: 0.915 | L59: 0.915 | M59: открыт | N59: 0.92 | P59: 50 | Q59: ПС 35/10 кВ Афанасьево | R59: 2,5+2,5 | S59: 0.145 | T59: 1.855 | U59: 0 | V59: 0 | W59: 1.855 | X59: 0 | Y59: 2.625 | Z59: 0.77 | AA59: 0.77 | AB59: открыт
A60: 51 | B60: ПС 35/10 кВ Бабарыкино | C60: 2,5+2,5 | D60: 5 | E60: 0.88 | F60: 0.61 | G60: 240 | H60: 0.27 | I60: 0 | J60: 2.625 | K60: 2.355 | L60: 2.355 | M60: открыт | N60: 0.85 | P60: 51 | Q60: ПС 35/10 кВ Бабарыкино | R60: 2,5+2,5 | S60: 0.111 | T60: 0.991 | U60: 0.61 | V60: 240 | W60: 0.381 | X60: 0 | Y60: 2.625 | Z60: 2.244 | AA60: 2.244 | AB60: открыт
A61: 52 | B61: ПС 35/10 кВ Аврора | C61: 2,5+2,5 | D61: 5 | E61: 1.33 | F61: 0.7 | G61: 60 | H61: 0.63 | I61: 0 | J61: 2.625 | K61: 1.995 | L61: 1.995 | M61: открыт | N61: 0.97 | P61: 52 | Q61: ПС 35/10 кВ Аврора | R61: 2,5+2,5 | S61: 0.187 | T61: 1.517 | U61: 0.7 | V61: 60 | W61: 0.817 | X61: 0 | Y61: 2.625 | Z61: 1.808 | AA61: 1.808 | AB61: открыт
A62: 53 | B62: ПС 35/10 кВ Б.Боёвка | C62: 2,5+2,5 | D62: 5 | E62: 0.41 | F62: 0.15 | G62: 100 | H62: 0.26 | I62: 0 | J62: 2.625 | K62: 2.365 | L62: 2.365 | M62: открыт | N62: 0.88 | P62: 53 | Q62: ПС 35/10 кВ Б.Боёвка | R62: 2,5+2,5 | T62: 0.41 | U62: 0.15 | V62: 100 | W62: 0.26 | X62: 0 | Y62: 2.625 | Z62: 2.365 | AA62: 2.365 | AB62: открыт
A63: 54 | B63: ПС 35/10 кВ Борки | C63: 2,5+2,5 | D63: 5 | E63: 1.08 | F63: 0 | G63: 0 | H63: 1.08 | I63: 0 | J63: 2.625 | K63: 1.545 | L63: 1.545 | M63: открыт | N63: 0.93 | P63: 54 | Q63: ПС 35/10 кВ Борки | R63: 2,5+2,5 | S63: 0.016 | T63: 1.096 | U63: 0 | V63: 0 | W63: 1.096 | X63: 0 | Y63: 2.625 | Z63: 1.529 | AA63: 1.529 | AB63: открыт
A64: 55 | B64: ПС 35/6кВ Восточная | C64: 10+16 | D64: 26 | E64: 7.51 | F64: 1.3 | G64: 20 | H64: 6.21 | I64: 0 | J64: =10*1.05 -> 10.5 | K64: 4.29 | L64: 4.29 | M64: открыт | N64: 0.99 | P64: 55 | Q64: ПС 35/6кВ Восточная | R64: 10+16 | S64: 0.73 | T64: 8.24 | U64: 1.3 | V64: 20 | W64: 6.94 | X64: 0 | Y64: 10.5 | Z64: 3.56 | AA64: 3.56 | AB64: открыт
A65: 56 | B65: ПС 35/10 кВ Васильевка | C65: 2,5+2,5 | D65: 5 | E65: 0.65 | F65: 0.3 | G65: 60 | H65: 0.35 | I65: 0 | J65: 2.625 | K65: 2.275 | L65: 2.275 | M65: открыт | N65: 0.89 | P65: 56 | Q65: ПС 35/10 кВ Васильевка | R65: 2,5+2,5 | S65: 0.02 | T65: 0.67 | U65: 0.3 | V65: 60 | W65: 0.37 | X65: 0 | Y65: 2.625 | Z65: 2.255 | AA65: 2.255 | AB65: открыт
A66: 57 | B66: ПС 35/10 кВ Воронец | C66: 4+4 | D66: 8 | E66: 2.37 | F66: 0.5 | G66: 120 | H66: 1.87 | I66: 0 | J66: =4*1.05 -> 4.2 | K66: 2.33 | L66: 2.33 | M66: открыт | N66: 0.92 | P66: 57 | Q66: ПС 35/10 кВ Воронец | R66: 4+4 | S66: 0.257 | T66: 2.627 | U66: 0.5 | V66: 120 | W66: 2.127 | X66: 0 | Y66: 4.2 | Z66: 2.073 | AA66: 2.073 | AB66: открыт
A67: 58 | B67: ПС 35/6 кВ Голиково | C67: 1,8+1,6 | D67: 3.4 | E67: 0.81 | F67: 0 | G67: 0 | H67: 0.81 | I67: 0 | J67: =1.6*1.05 -> 1.68 | K67: 0.87 | L67: 0.87 | M67: открыт | N67: 0.87 | P67: 58 | Q67: ПС 35/6 кВ Голиково | R67: 1,8+1,6 | S67: 0.062 | T67: 0.872 | U67: 0 | V67: 0 | W67: 0.872 | X67: 0 | Y67: 1.68 | Z67: 0.808 | AA67: 0.808 | AB67: открыт
A68: 59 | B68: ПС 35/10 кВ Гатище | C68: 2,5+2,5 | D68: 5 | E68: 0.59 | F68: 0 | G68: 0 | H68: 0.59 | I68: 0 | J68: =2.5*1.05 -> 2.625 | K68: 2.035 | L68: 2.035 | M68: открыт | N68: 0.92 | P68: 59 | Q68: ПС 35/10 кВ Гатище | R68: 2,5+2,5 | S68: 0.01 | T68: 0.6 | U68: 0 | V68: 0 | W68: 0.6 | X68: 0 | Y68: 2.625 | Z68: 2.025 | AA68: 2.025 | AB68: открыт
A69: 60 | B69: ПС 35/10 кВ Гнилуша | C69: 6,3+6,3 | D69: 12.6 | E69: 2.24 | F69: 0.7 | G69: 40 | H69: =E69-F69 -> 1.54 | I69: 0 | J69: =6.3*1.05 -> 6.615 | K69: 5.075 | L69: 5.075 | M69: открыт | N69: 0.87 | P69: 60 | Q69: ПС 35/10 кВ Гнилуша | R69: 6,3+6,3 | S69: 0.111 | T69: =S69+E69 -> 2.351 | U69: 0.7 | V69: 40 | W69: 1.651 | X69: 0 | Y69: 6.615 | Z69: 4.964 | AA69: 4.964 | AB69: открыт
A70: 61 | B70: ПС 35/10кВ Грызлово | C70: 2,5+2,5 | D70: 5 | E70: 0.99 | F70: 0.2 | G70: 100 | H70: 0.79 | I70: 0 | J70: =2.5*1.05 -> 2.625 | K70: 1.835 | L70: 1.835 | M70: открыт | N70: 0.92 | P70: 61 | Q70: ПС 35/10кВ Грызлово | R70: 2,5+2,5 | T70: 0.99 | U70: 0.2 | V70: 100 | W70: 0.79 | X70: 0 | Y70: 2.625 | Z70: 1.835 | AA70: 1.835 | AB70: открыт
A71: 62 | B71: ПС 35/10 кВ Жерновное | C71: 2,5+2,5 | D71: 5 | E71: 0.26 | F71: 0 | G71: 0 | H71: 0.26 | I71: 0 | J71: =2.5*1.05 -> 2.625 | K71: 2.365 | L71: 2.365 | M71: открыт | N71: 0.92 | P71: 62 | Q71: ПС 35/10 кВ Жерновное | R71: 2,5+2,5 | S71: 0.412 | T71: 0.672 | U71: 0 | V71: 0 | W71: 0.672 | X71: 0 | Y71: 2.625 | Z71: 1.953 | AA71: 1.953 | AB71: открыт
A72: 63 | B72: ПС 35/10 кВ Задонск-сельск. | C72: 3,2+1,6 | D72: 4.8 | E72: 2.24 | F72: 0 | G72: 0 | H72: 2.24 | I72: 0 | J72: =1.6*1.05 -> 1.68 | K72: -0.56 | L72: -0.56 | M72: закрыт | N72: 0.94 | P72: 63 | Q72: ПС 35/10 кВ Задонск-сельск. | R72: 3,2+1,6 | S72: 0.47 | T72: 2.71 | U72: 0 | V72: 0 | W72: 2.71 | X72: 0 | Y72: 1.68 | Z72: -1.03 | AA72: -1.03 | AB72: закрыт
A73: 64 | B73: ПС 35/10 кВ Захаровка | C73: 2,5+2,5 | D73: 5 | E73: 0.56 | F73: 0.16 | G73: 60 | H73: 0.4 | I73: 0 | J73: =2.5*1.05 -> 2.625 | K73: 2.225 | L73: 2.225 | M73: открыт | N73: 0.79 | P73: 64 | Q73: ПС 35/10 кВ Захаровка | R73: 2,5+2,5 | S73: 0.02 | T73: 0.58 | U73: 0.16 | V73: 60 | W73: 0.42 | X73: 0 | Y73: 2.625 | Z73: 2.205 | AA73: 2.205 | AB73: открыт
A74: 65 | B74: ПС 35/10 кВ Казаки | C74: 4+4 | D74: 8 | E74: 1.83 | F74: 0 | G74: 0 | H74: 1.83 | I74: 0 | J74: =4*1.05 -> 4.2 | K74: 2.37 | L74: 2.37 | M74: открыт | N74: 0.92 | P74: 65 | Q74: ПС 35/10 кВ Казаки | R74: 4+4 | S74: 0.249 | T74: 2.079 | U74: 0 | V74: 0 | W74: 2.079 | X74: 0 | Y74: 4.2 | Z74: 2.121 | AA74: 2.121 | AB74: открыт
A75: 66 | B75: ПС 35/10 кВ Колесово | C75: 6,3+6,3 | D75: 12.6 | E75: 3.05 | F75: 0.5 | G75: 60 | H75: 2.55 | I75: 0 | J75: =6.3*1.05 -> 6.615 | K75: 4.065 | L75: 4.065 | M75: открыт | N75: 0.92 | P75: 66 | Q75: ПС 35/10 кВ Колесово | R75: 6,3+6,3 | S75: 0.366 | T75: 3.416 | U75: 0.5 | V75: 60 | W75: 2.916 | X75: 0 | Y75: 6.615 | Z75: 3.699 | AA75: 3.699 | AB75: открыт
A76: 67 | B76: ПС 35/10 кВ Князево | C76: 2,5+2,5 | D76: 5 | E76: 0.37 | F76: 0 | G76: 0 | H76: 0.37 | I76: 0 | J76: =2.5*1.05 -> 2.625 | K76: 2.255 | L76: 2.255 | M76: открыт | N76: 0.76 | P76: 67 | Q76: ПС 35/10 кВ Князево | R76: 2,5+2,5 | S76: 0.057 | T76: 0.427 | U76: 0 | V76: 0 | W76: 0.427 | X76: 0 | Y76: 2.625 | Z76: 2.198 | AA76: 2.198 | AB76: открыт
A77: 68 | B77: ПС 35/10 кВ Кириллово | C77: 2,5+2,5 | D77: 5 | E77: 0.72 | F77: 0.15 | G77: 60 | H77: 0.57 | I77: 0 | J77: =2.5*1.05 -> 2.625 | K77: 2.055 | L77: 2.055 | M77: открыт | N77: 0.94 | P77: 68 | Q77: ПС 35/10 кВ Кириллово | R77: 2,5+2,5 | S77: 0.014 | T77: 0.734 | U77: 0.15 | V77: 60 | W77: 0.584 | X77: 0 | Y77: 2.625 | Z77: 2.041 | AA77: 2.041 | AB77: открыт
A78: 69 | B78: ПС 35/10 кВ Ксизово | C78: 2,5+2,5 | D78: 5 | E78: 0.26 | F78: 0 | G78: 0 | H78: 0.26 | I78: 0 | J78: =2.5*1.05 -> 2.625 | K78: 2.365 | L78: 2.365 | M78: открыт | N78: 0.91 | P78: 69 | Q78: ПС 35/10 кВ Ксизово | R78: 2,5+2,5 | S78: 0.05 | T78: 0.31 | U78: 0 | V78: 0 | W78: 0.31 | X78: 0 | Y78: 2.625 | Z78: 2.315 | AA78: 2.315 | AB78: открыт
A79: 70 | B79: ПС 35/10 кВ Ламское | C79: 2,5+2,5 | D79: 5 | E79: 1.89 | F79: 0.22 | G79: 180 | H79: 1.67 | I79: 0 | J79: =2.5*1.05 -> 2.625 | K79: 0.955 | L79: 0.955 | M79: открыт | N79: 0.92 | P79: 70 | Q79: ПС 35/10 кВ Ламское | R79: 2,5+2,5 | S79: 0.04 | T79: 1.93 | U79: 0.22 | V79: 180 | W79: 1.71 | X79: 0 | Y79: 2.625 | Z79: 0.915 | AA79: 0.915 | AB79: открыт
A80: 71 | B80: ПС 35/10 кВ Казачье | C80: 2,5+2,5 | D80: 5 | E80: 0.42 | F80: 0 | G80: 0 | H80: 0.42 | I80: 0 | J80: =2.5*1.05 -> 2.625 | K80: 2.205 | L80: 2.205 | M80: открыт | N80: 0.84 | P80: 71 | Q80: ПС 35/10 кВ Казачье | R80: 2,5+2,5 | S80: 0.237 | T80: 0.657 | U80: 0 | V80: 0 | W80: 0.657 | X80: 0 | Y80: 2.625 | Z80: 1.968 | AA80: 1.968 | AB80: открыт
A81: 72 | B81: ПС 35/10 кВ Лебяжье | C81: 2,5+1,6 | D81: 4.1 | E81: 0.4 | F81: 0 | G81: 0 | H81: 0.4 | I81: 0 | J81: =1.6*1.05 -> 1.68 | K81: 1.28 | L81: 1.28 | M81: открыт | N81: 0.89 | P81: 72 | Q81: ПС 35/10 кВ Лебяжье | R81: 2,5+1,6 | S81: 0.015 | T81: 0.415 | U81: 0 | V81: 0 | W81: 0.415 | X81: 0 | Y81: 1.68 | Z81: 1.265 | AA81: 1.265 | AB81: открыт
A82: 73 | B82: ПС 35/10 кВ Ломовец | C82: 1,6+2,5 | D82: 4.1 | E82: 0.43 | F82: 0 | G82: 0 | H82: 0.43 | I82: 0 | J82: =1.6*1.05 -> 1.68 | K82: 1.25 | L82: 1.25 | M82: открыт | N82: 0.76 | P82: 73 | Q82: ПС 35/10 кВ Ломовец | R82: 1,6+2,5 | S82: 0.01 | T82: 0.44 | U82: 0 | V82: 0 | W82: 0.44 | X82: 0 | Y82: 1.68 | Z82: 1.24 | AA82: 1.24 | AB82: открыт
A83: 74 | B83: ПС 35/10 кВ Ольшанец | C83: 2,5+4 | D83: 6.5 | E83: 1.43 | F83: 0 | G83: 0 | H83: 1.43 | I83: 0 | J83: =2.5*1.05 -> 2.625 | K83: 1.195 | L83: 1.195 | M83: открыт | N83: 0.91 | P83: 74 | Q83: ПС 35/10 кВ Ольшанец | R83: 2,5+4 | S83: 0.051 | T83: 1.481 | U83: 0 | V83: 0 | W83: 1.481 | X83: 0 | Y83: 2.625 | Z83: 1.144 | AA83: 1.144 | AB83: открыт
A84: 75 | B84: ПС 35/10 кВ Плоское | C84: 4+4 | D84: 8 | E84: 3.99 | F84: 0.8 | G84: 140 | H84: 3.19 | I84: 0 | J84: =4*1.05 -> 4.2 | K84: 1.01 | L84: 1.01 | M84: открыт | N84: 0.95 | P84: 75 | Q84: ПС 35/10 кВ Плоское | R84: 4+4 | S84: 3.469 | T84: 7.459 | U84: 0.8 | V84: 140 | W84: 6.659 | X84: 0 | Y84: 4.2 | Z84: -2.459 | AA84: -2.459 | AB84: закрыт
A85: 76 | B85: ПС 35/10 кВ Стегаловка | C85: 2,5+3,2 | D85: 5.7 | E85: 0.51 | F85: 0.1 | G85: 80 | H85: 0.41 | I85: 0 | J85: =2.5*1.05 -> 2.625 | K85: 2.215 | L85: 2.215 | M85: открыт | N85: 0.93 | P85: 76 | Q85: ПС 35/10 кВ Стегаловка | R85: 2,5+3,2 | S85: 0.018 | T85: 0.528 | U85: 0.1 | V85: 80 | W85: 0.428 | X85: 0 | Y85: 2.625 | Z85: 2.197 | AA85: 2.197 | AB85: открыт
A86: 77 | B86: ПС 35/10 кВ Солидарность | C86: 4+4 | D86: 8 | E86: 2.45 | F86: 1.2 | G86: 70 | H86: 1.25 | I86: 0 | J86: =4*1.05 -> 4.2 | K86: 2.95 | L86: 2.95 | M86: открыт | N86: 0.94 | P86: 77 | Q86: ПС 35/10 кВ Солидарность | R86: 4+4 | S86: 1.938 | T86: 4.388 | U86: 1.2 | V86: 70 | W86: 3.188 | X86: 0 | Y86: 4.2 | Z86: 1.012 | AA86: 1.012 | AB86: открыт
A87: 78 | B87: ПС 35/10 кВ Тимирязево | C87: 4+4 | D87: 8 | E87: 0.97 | F87: 0.3 | G87: 60 | H87: 0.67 | I87: 0 | J87: =4*1.05 -> 4.2 | K87: 3.53 | L87: 3.53 | M87: открыт | N87: 0.92 | P87: 78 | Q87: ПС 35/10 кВ Тимирязево | R87: 4+4 | S87: 0.189 | T87: 1.159 | U87: 0.3 | V87: 60 | W87: 0.859 | X87: 0 | Y87: 4.2 | Z87: 3.341 | AA87: 3.341 | AB87: открыт
A88: 79 | B88: ПС 35/10 кВ Талица | C88: 2,5+2,5 | D88: 5 | E88: 1.35 | F88: 0.2 | G88: 110 | H88: 1.15 | I88: 0 | J88: =2.5*1.05 -> 2.625 | K88: 1.475 | L88: 1.475 | M88: открыт | N88: 0.83 | P88: 79 | Q88: ПС 35/10 кВ Талица | R88: 2,5+2,5 | S88: 0.167 | T88: 1.517 | U88: 0.2 | V88: 110 | W88: 1.317 | X88: 0 | Y88: 2.625 | Z88: 1.308 | AA88: 1.308 | AB88: открыт
A89: 80 | B89: ПС 35/10 кВ II-е Тербуны | C89: 2,5+2,5 | D89: 5 | E89: 1.13 | F89: 0 | G89: 0 | H89: 1.13 | I89: 0 | J89: =2.5*1.05 -> 2.625 | K89: 1.495 | L89: 1.495 | M89: открыт | N89: 0.91 | P89: 80 | Q89: ПС 35/10 кВ II-е Тербуны | R89: 2,5+2,5 | S89: 0.1 | T89: 1.23 | U89: 0 | V89: 0 | W89: 1.23 | X89: 0 | Y89: 2.625 | Z89: 1.395 | AA89: 1.395 | AB89: открыт
A90: 81 | B90: ПС 35/10 кВ Тихий Дон | C90: 4+4 | D90: 8 | E90: 0.54 | F90: 0.13 | G90: 60 | H90: 0.41 | I90: 0 | J90: =4*1.05 -> 4.2 | K90: 3.79 | L90: 3.79 | M90: открыт | N90: 0.95 | P90: 81 | Q90: ПС 35/10 кВ Тихий Дон | R90: 4+4 | S90: 0.11 | T90: 0.65 | U90: 0.13 | V90: 60 | W90: 0.52 | X90: 0 | Y90: 4.2 | Z90: 3.68 | AA90: 3.68 | AB90: открыт
A91: 82 | B91: ПС 35/10 кВ Хитрово | C91: 6,3+6,3 | D91: 12.6 | E91: 2.42 | F91: 0 | G91: 0 | H91: 2.42 | I91: 0 | J91: =6.3*1.05 -> 6.615 | K91: 4.195 | L91: 4.195 | M91: открыт | N91: 0.95 | P91: 82 | Q91: ПС 35/10 кВ Хитрово | R91: 6,3+6,3 | S91: 0.04 | T91: 2.46 | U91: 0 | V91: 0 | W91: 2.46 | X91: 0 | Y91: 6.62 | Z91: 4.16 | AA91: 4.16 | AB91: открыт
A92: 83 | B92: ПС 35/10 кВ Чернава | C92: 2,5+2,5 | D92: 5 | E92: 2 | F92: 0 | G92: 0 | H92: 2 | I92: 0 | J92: =2.5*1.05 -> 2.625 | K92: 0.625 | L92: 0.625 | M92: открыт | N92: 0.91 | P92: 83 | Q92: ПС 35/10 кВ Чернава | R92: 2,5+2,5 | S92: 0.069 | T92: 2.069 | U92: 0 | V92: 0 | W92: 2.069 | X92: 0 | Y92: 2.625 | Z92: 0.556 | AA92: 0.556 | AB92: открыт
A93: 84 | B93: ПС 35/10 кВ Чернолес | C93: 2,5+2,5 | D93: 5 | E93: 0.35 | F93: 0 | G93: 0 | H93: 0.35 | I93: 0 | J93: =2.5*1.05 -> 2.625 | K93: 2.275 | L93: 2.275 | M93: открыт | N93: 0.97 | P93: 84 | Q93: ПС 35/10 кВ Чернолес | R93: 2,5+2,5 | S93: 0.015 | T93: 0.365 | U93: 0 | V93: 0 | W93: 0.365 | X93: 0 | Y93: 2.625 | Z93: 2.26 | AA93: 2.26 | AB93: открыт
A94: 85 | B94: ПС 35/6 кВ ПС № 5 | C94: 6,3+3,2 | D94: 9.5 | E94: 1.39 | F94: 0 | G94: 0 | H94: 1.39 | I94: 0 | J94: =3.2*1.05 -> 3.36 | K94: 1.97 | L94: 1.97 | M94: открыт | N94: 0.95 | P94: 85 | Q94: ПС 35/6 кВ ПС № 5 | R94: 6,3+3,2 | T94: 1.39 | U94: 0 | V94: 0 | W94: 1.39 | X94: 0 | Y94: 3.36 | Z94: 1.97 | AA94: 1.97 | AB94: открыт
A95: 86 | B95: ПС 35/10 кВ Красное | C95: 4+4 | D95: 8 | E95: 4.22 | F95: 1.5 | G95: 120 | H95: 2.72 | I95: 0 | J95: =4*1.05 -> 4.2 | K95: 1.48 | L95: 1.48 | M95: открыт | N95: 0.95 | P95: 86 | Q95: ПС 35/10 кВ Красное | R95: 4+4 | S95: 0.301 | T95: 4.521 | U95: 1.5 | V95: 120 | W95: 3.021 | X95: 0 | Y95: 4.2 | Z95: 1.179 | AA95: 1.179 | AB95: открыт
A96: 87 | B96: ПС 35/10 кВ Теплое | C96: 2,5+2,5 | D96: 5 | E96: 1.090909091 | F96: 0.8 | G96: 60 | H96: 0.2909090909 | I96: 0 | J96: =2.5*1.05 -> 2.625 | K96: 2.334090909 | L96: 2.334090909 | M96: открыт | N96: 0.88 | P96: 87 | Q96: ПС 35/10 кВ Теплое | R96: 2,5+2,5 | S96: 0.017 | T96: 1.107909091 | U96: 0.8 | V96: 60 | W96: 0.3079090909 | X96: 0 | Y96: 2.625 | Z96: 2.317090909 | AA96: 2.317090909 | AB96: открыт
A97: 88 | B97: ПС 35/10 кВ Данков-сельская | C97: 6,3+6,3 | D97: 12.6 | E97: 3.909090909 | F97: 1.6 | G97: 60 | H97: 2.309090909 | I97: 0 | J97: =6.3*1.05 -> 6.615 | K97: 4.305909091 | L97: 4.305909091 | M97: открыт | N97: 0.92 | P97: 88 | Q97: ПС 35/10 кВ Данков-сельская | R97: 6,3+6,3 | S97: 0.592 | T97: 4.501090909 | U97: 1.6 | V97: 60 | W97: 2.901090909 | X97: 0 | Y97: 6.62 | Z97: 3.718909091 | AA97: 3.718909091 | AB97: открыт
A98: 89 | B98: ПС 35/10 кВ Колыбельская | C98: 2,5+2,5 | D98: 5 | E98: 1.11 | F98: 0 | G98: 0 | H98: 1.11 | I98: 0 | J98: =2.5*1.05 -> 2.625 | K98: 1.515 | L98: 1.515 | M98: открыт | N98: 0.96 | P98: 89 | Q98: ПС 35/10 кВ Колыбельская | R98: 2,5+2,5 | S98: 0.092 | T98: 1.202 | U98: 0 | V98: 0 | W98: 1.202 | X98: 0 | Y98: 2.625 | Z98: 1.423 | AA98: 1.423 | AB98: открыт
A99: 90 | B99: ПС 35/10 кВ Топки | C99: 2,5+2,5 | D99: 5 | E99: 0.65 | F99: 0.29 | G99: 60 | H99: 0.36 | I99: 0 | J99: =2.5*1.05 -> 2.625 | K99: 2.265 | L99: 2.265 | M99: открыт | N99: 0.87 | P99: 90 | Q99: ПС 35/10 кВ Топки | R99: 2,5+2,5 | S99: 0.02 | T99: 0.67 | U99: 0.29 | V99: 60 | W99: 0.38 | X99: 0 | Y99: 2.625 | Z99: 2.245 | AA99: 2.245 | AB99: открыт
A100: 91 | B100: ПС 35/10 кВ Агроном | C100: 4+6,3 | D100: 10.3 | E100: 1.9 | F100: 0.2 | G100: 60 | H100: 1.7 | I100: 0 | J100: =4*1.05 -> 4.2 | K100: 2.5 | L100: 2.5 | M100: открыт | N100: 0.96 | P100: 91 | Q100: ПС 35/10 кВ Агроном | R100: 4+6,3 | S100: 0.069 | T100: 1.969 | U100: 0.2 | V100: 60 | W100: 1.769 | X100: 0 | Y100: 4.2 | Z100: 2.431 | AA100: 2.431 | AB100: открыт
A101: 92 | B101: ПС 35/10 кВ Троекурово-совхозная | C101: 2,5+2,5 | D101: 5 | E101: 2.02 | F101: 0 | G101: 0 | H101: =E101-F101 -> 2.02 | I101: 0 | J101: =2.5*1.05 -> 2.625 | K101: =J101-I101-H101 -> 0.605 | L101: =K101 -> 0.605 | M101: открыт | N101: 0.94 | P101: 92 | Q101: ПС 35/10 кВ Троекурово-совхозная | R101: 2,5+2,5 | S101: 1.262 | T101: =S101+E101 -> 3.282 | U101: 0 | V101: 0 | W101: 3.282 | X101: 0 | Y101: 2.625 | Z101: -0.657 | AA101: -0.657 | AB101: закрыт
A102: 93 | B102: ПС 35/10 кВ Гагарино | C102: 1,8+1,8 | D102: 3.6 | E102: 0.49 | F102: 0.2 | G102: 120 | H102: 0.29 | I102: 0 | J102: =1.8*1.05 -> 1.89 | K102: 1.6 | L102: 1.6 | M102: открыт | N102: 0.96 | P102: 93 | Q102: ПС 35/10 кВ Гагарино | R102: 1,8+1,8 | T102: 0.49 | U102: 0.2 | V102: 120 | W102: 0.29 | X102: 0 | Y102: 1.89 | Z102: 1.6 | AA102: 1.6 | AB102: открыт
A103: 94 | B103: ПС 35/10 кВ Раненбург | C103: 1,6+1,6 | D103: 3.2 | E103: 1.47 | F103: 0 | G103: 0 | H103: 1.47 | I103: 0 | J103: =1.6*1.05 -> 1.68 | K103: 0.21 | L103: 0.21 | M103: открыт | N103: 0.97 | P103: 94 | Q103: ПС 35/10 кВ Раненбург | R103: 1,6+1,6 | S103: 0.399 | T103: 1.869 | U103: 0 | V103: 0 | W103: 1.869 | X103: 0 | Y103: 1.68 | Z103: -0.189 | AA103: -0.189 | AB103: закрыт
A104: 95 | B104: ПС 35/10 кВ Сергиевка | C104: 2,5+2,5 | D104: 5 | E104: 0.16 | F104: 0 | G104: 0 | H104: 0.16 | I104: 0 | J104: =2.5*1.05 -> 2.625 | K104: 2.465 | L104: 2.465 | M104: открыт | N104: 0.91 | P104: 95 | Q104: ПС 35/10 кВ Сергиевка | R104: 2,5+2,5 | S104: 0.068 | T104: 0.228 | U104: 0 | V104: 0 | W104: =T104-U104 -> 0.228 | X104: 0 | Y104: 2.625 | Z104: =Y104-X104-W104 -> 2.397 | AA104: =Z104 -> 2.397 | AB104: открыт
A105: 96 | B105: ПС 35/10 кВ Дрезгалово | C105: 1,6+1,6 | D105: 3.2 | E105: 1.09 | F105: 0.3 | G105: 60 | H105: 0.79 | I105: 0 | J105: 1.68 | K105: 0.89 | L105: 0.89 | M105: открыт | N105: 0.97 | P105: 96 | Q105: ПС 35/10 кВ Дрезгалово | R105: 1,6+1,6 | S105: 0.024 | T105: 1.114 | U105: 0.3 | V105: 60 | W105: 0.814 | X105: 0 | Y105: 1.68 | Z105: 0.866 | AA105: 0.866 | AB105: открыт
A106: 97 | B106: ПС 35/10 кВ Долгое | C106: 2,5+2,5 | D106: 5 | E106: 0.24 | F106: 0 | G106: 0 | H106: 0.24 | I106: 0 | J106: =2.5*1.05 -> 2.625 | K106: 2.385 | L106: 2.385 | M106: открыт | N106: 0.84 | P106: 97 | Q106: ПС 35/10 кВ Долгое | R106: 2,5+2,5 | S106: 0.026 | T106: 0.266 | U106: 0 | V106: 0 | W106: 0.266 | X106: 0 | Y106: 2.625 | Z106: 2.359 | AA106: 2.359 | AB106: открыт
A107: 98 | B107: ПС 35/10 кВ Воскресеновка | C107: 1,6+1,6 | D107: 3.2 | E107: 0.56 | F107: 0 | G107: 0 | H107: 0.56 | I107: 0 | J107: =1.6*1.05 -> 1.68 | K107: 1.12 | L107: 1.12 | M107: открыт | N107: 0.88 | P107: 98 | Q107: ПС 35/10 кВ Воскресеновка | R107: 1,6+1,6 | S107: 0.099 | T107: 0.659 | U107: 0 | V107: 0 | W107: 0.659 | X107: 0 | Y107: 1.68 | Z107: 1.021 | AA107: 1.021 | AB107: открыт
A108: 99 | B108: ПС 35/10 кВ Сапрыкино | C108: 1,6+2,5 | D108: 4.1 | E108: 0.64 | F108: 0 | G108: 0 | H108: 0.64 | I108: 0 | J108: =1.6*1.05 -> 1.68 | K108: 1.04 | L108: 1.04 | M108: открыт | N108: 0.81 | P108: 99 | Q108: ПС 35/10 кВ Сапрыкино | R108: 1,6+2,5 | S108: 0.12 | T108: 0.76 | U108: 0 | V108: 0 | W108: 0.76 | X108: 0 | Y108: 1.68 | Z108: 0.92 | AA108: 0.92 | AB108: открыт
A109: 100 | B109: ПС 35/10 кВ Новополянье | C109: 2,5+2,5 | D109: 5 | E109: 0.47 | F109: 0 | G109: 0 | H109: 0.47 | I109: 0 | J109: =2.5*1.05 -> 2.625 | K109: 2.155 | L109: 2.155 | M109: открыт | N109: 0.93 | P109: 100 | Q109: ПС 35/10 кВ Новополянье | R109: 2,5+2,5 | S109: 0.046 | T109: 0.516 | U109: 0 | V109: 0 | W109: 0.516 | X109: 0 | Y109: 2.625 | Z109: 2.109 | AA109: 2.109 | AB109: открыт
A110: 101 | B110: ПС 35/10 кВ Ведное | C110: 2,5+2,5 | D110: 5 | E110: 0.76 | F110: 0.3 | G110: 120 | H110: 0.46 | I110: 0 | J110: 2.625 | K110: 2.165 | L110: 2.165 | M110: открыт | N110: 0.92 | P110: 101 | Q110: ПС 35/10 кВ Ведное | R110: 2,5+2,5 | S110: 0.014 | T110: 0.774 | U110: 0.3 | V110: 120 | W110: 0.474 | X110: 0 | Y110: 2.625 | Z110: 2.151 | AA110: 2.151 | AB110: открыт
A111: 102 | B111: ПС 35/10 кВ Бигильдино | C111: 2,5+2,5 | D111: 5 | E111: 1.22 | F111: 0.6 | G111: 60 | H111: 0.62 | I111: 0 | J111: 2.625 | K111: 2.005 | L111: 2.005 | M111: открыт | N111: 0.95 | P111: 102 | Q111: ПС 35/10 кВ Бигильдино | R111: 2,5+2,5 | S111: 0.052 | T111: 1.272 | U111: 0.6 | V111: 60 | W111: 0.672 | X111: 0 | Y111: 2.625 | Z111: 1.953 | AA111: 1.953 | AB111: открыт
A112: 103 | B112: ПС 35/10 кВ Культура | C112: 2,5+2,5 | D112: 5 | E112: 1.04 | F112: 0.2 | G112: 60 | H112: 0.84 | I112: 0 | J112: 2.625 | K112: 1.785 | L112: 1.785 | M112: открыт | N112: 0.92 | P112: 103 | Q112: ПС 35/10 кВ Культура | R112: 2,5+2,5 | S112: 0.078 | T112: 1.118 | U112: 0.2 | V112: 60 | W112: 0.918 | X112: 0 | Y112: 2.625 | Z112: 1.707 | AA112: 1.707 | AB112: открыт
A113: 104 | B113: ПС 35/10 кВ Борятино | C113: 2,5+2,5 | D113: 5 | E113: 0.3090909091 | F113: 0 | G113: 0 | H113: 0.3090909091 | I113: 0 | J113: 2.625 | K113: 2.315909091 | L113: 2.315909091 | M113: открыт | N113: 0.85 | P113: 104 | Q113: ПС 35/10 кВ Борятино | R113: 2,5+2,5 | S113: 0.006 | T113: 0.3150909091 | U113: 0 | V113: 0 | W113: 0.3150909091 | X113: 0 | Y113: 2.625 | Z113: 2.309909091 | AA113: 2.309909091 | AB113: открыт
A114: 105 | B114: ПС 35/10 кВ Б.Попово | C114: 2,5+2,5 | D114: 5 | E114: 1.82 | F114: 0.3 | G114: 90 | H114: 1.52 | I114: 0 | J114: 2.625 | K114: 1.105 | L114: 1.105 | M114: открыт | N114: 0.97 | P114: 105 | Q114: ПС 35/10 кВ Б.Попово | R114: 2,5+2,5 | S114: 0.2 | T114: 2.02 | U114: 0.3 | V114: 90 | W114: 1.72 | X114: 0 | Y114: 2.625 | Z114: 0.905 | AA114: 0.905 | AB114: открыт
A115: 106 | B115: ПС 35/10 кВ Б. Избищи | C115: 2,5+2,5 | D115: 5 | E115: 1.87 | F115: 1 | G115: 60 | H115: 0.87 | I115: 0 | J115: 2.625 | K115: 1.755 | L115: 1.755 | M115: открыт | N115: 0.92 | P115: 106 | Q115: ПС 35/10 кВ Б. Избищи | R115: 2,5+2,5 | S115: 0.025 | T115: 1.895 | U115: 1 | V115: 60 | W115: 0.895 | X115: 0 | Y115: 2.625 | Z115: 1.73 | AA115: 1.73 | AB115: открыт
A116: 107 | B116: ПС 35/10 кВ Полибино | C116: 2,5+2,5 | D116: 5 | E116: 0.2363636364 | F116: 0 | G116: 0 | H116: 0.2363636364 | I116: 0 | J116: 2.625 | K116: 2.388636364 | L116: 2.388636364 | M116: открыт | N116: 0.91 | P116: 107 | Q116: ПС 35/10 кВ Полибино | R116: 2,5+2,5 | S116: 0.093 | T116: 0.3293636364 | U116: 0 | V116: 0 | W116: 0.3293636364 | X116: 0 | Y116: 2.625 | Z116: 2.295636364 | AA116: 2.295636364 | AB116: открыт
A117: 108 | B117: ПС 35/10 кВ Дубрава | C117: 2,5+2,5 | D117: 5 | E117: 0.33 | F117: 0 | G117: 0 | H117: 0.33 | I117: 0 | J117: 2.625 | K117: 2.295 | L117: 2.295 | M117: открыт | N117: 0.78 | P117: 108 | Q117: ПС 35/10 кВ Дубрава | R117: 2,5+2,5 | S117: 0.01 | T117: 0.34 | U117: 0 | V117: 0 | W117: 0.34 | X117: 0 | Y117: 2.625 | Z117: 2.285 | AA117: 2.285 | AB117: открыт
A118: 109 | B118: ПС 35/10 кВ Хрущево | C118: 2,5+2,5 | D118: 5 | E118: 0.44 | F118: 0 | G118: 0 | H118: 0.44 | I118: 0 | J118: 2.625 | K118: 2.185 | L118: 2.185 | M118: открыт | N118: 0.88 | P118: 109 | Q118: ПС 35/10 кВ Хрущево | R118: 2,5+2,5 | S118: 0.019 | T118: 0.459 | U118: 0 | V118: 0 | W118: 0.459 | X118: 0 | Y118: 2.625 | Z118: 2.166 | AA118: 2.166 | AB118: открыт
A119: 110 | B119: ПС 35/10 кВ Б. Верх | C119: 2,5+2,5 | D119: 5 | E119: 0.91 | F119: 0 | G119: 0 | H119: 0.91 | I119: 0 | J119: 2.625 | K119: 1.715 | L119: 1.715 | M119: открыт | N119: 0.89 | P119: 110 | Q119: ПС 35/10 кВ Б. Верх | R119: 2,5+2,5 | S119: 0.03 | T119: 0.94 | U119: 0 | V119: 0 | W119: 0.94 | X119: 0 | Y119: 2.625 | Z119: 1.685 | AA119: 1.685 | AB119: открыт
A120: 111 | B120: ПС 35/10 кВ Головинщино | C120: 2,5+2,5 | D120: 5 | E120: 1.02 | F120: 0 | G120: 0 | H120: 1.02 | I120: 0 | J120: 2.625 | K120: 1.605 | L120: 1.605 | M120: открыт | N120: 0.94 | P120: 111 | Q120: ПС 35/10 кВ Головинщино | R120: 2,5+2,5 | S120: 0.29 | T120: 1.31 | U120: 0 | V120: 0 | W120: 1.31 | X120: 0 | Y120: 2.625 | Z120: 1.315 | AA120: 1.315 | AB120: открыт
A121: 112 | B121: ПС 35/10 кВ Яблонево | C121: 2,5+2,5 | D121: 5 | E121: 0.75 | F121: 0 | G121: 0 | H121: 0.75 | I121: 0 | J121: 2.625 | K121: 1.875 | L121: 1.875 | M121: открыт | N121: 0.86 | P121: 112 | Q121: ПС 35/10 кВ Яблоневое | R121: 2,5+2,5 | S121: 2.807 | T121: 3.557 | U121: 0 | V121: 0 | W121: 3.557 | X121: 0 | Y121: 2.625 | Z121: -0.932 | AA121: -0.932 | AB121: закрыт
A122: 113 | B122: ПС 35/10 кВ Политово | C122: 2,5+2,5 | D122: 5 | E122: 0.91 | F122: 0 | G122: 0 | H122: 0.91 | I122: 0 | J122: 2.625 | K122: 1.715 | L122: 1.715 | M122: открыт | N122: 0.89 | P122: 113 | Q122: ПС 35/10 кВ Политово | R122: 2,5+2,5 | S122: 0.015 | T122: 0.925 | U122: 0 | V122: 0 | W122: 0.925 | X122: 0 | Y122: 2.625 | Z122: 1.7 | AA122: 1.7 | AB122: открыт
A123: 114 | B123: ПС 35/10 кВ Комплекс | C123: 4+4 | D123: 8 | E123: 1.22 | F123: 0.6 | G123: 120 | H123: 0.62 | I123: 0 | J123: 4.2 | K123: 3.58 | L123: 3.58 | M123: открыт | N123: 0.91 | P123: 114 | Q123: ПС 35/10 кВ Комплекс | R123: 4+4 | T123: 1.22 | U123: 0.6 | V123: 120 | W123: 0.62 | X123: 0 | Y123: 4.2 | Z123: 3.58 | AA123: 3.58 | AB123: открыт
A124: 115 | B124: ПС 35/10 кВ № 1 | C124: 4+4 | D124: 8 | E124: 4.48 | F124: 0 | G124: 0 | H124: 4.48 | I124: 0 | J124: 4.2 | K124: -0.28 | L124: -0.28 | M124: закрыт | N124: 0.986 | P124: 115 | Q124: ПС 35/10 кВ № 1 | R124: 4+4 | S124: 2.051 | T124: 6.531 | U124: 0 | V124: 0 | W124: 6.531 | X124: 0 | Y124: 4.2 | Z124: -2.331 | AA124: -2.331 | AB124: закрыт
A125: 116 | B125: ПС 35/6 кВ № 2 | C125: 2,5+1 | D125: 3.5 | E125: 1.93 | F125: 0 | G125: 0 | H125: 1.93 | I125: 0 | J125: 1.05 | K125: -0.88 | L125: -0.88 | M125: закрыт | N125: 0.995 | P125: 116 | Q125: ПС 35/6 кВ № 2 | R125: 2,5+1 | S125: 0.09 | T125: 2.02 | U125: 0 | V125: 0 | W125: 2.02 | X125: 0 | Y125: 1.05 | Z125: -0.97 | AA125: -0.97 | AB125: закрыт
A126: 117 | B126: ПС 35/10 кВ № 3 | C126: 2,5+2,5 | D126: 5 | E126: 2.39 | F126: 0.38 | G126: 40 | H126: 2.01 | I126: 0 | J126: =2.5*1.05 -> 2.625 | K126: 0.615 | L126: 0.615 | M126: открыт | N126: 0.97 | P126: 117 | Q126: ПС 35/10 кВ № 3 | R126: 2,5+2,5 | S126: 1.504 | T126: 3.894 | U126: 0.38 | V126: 40 | W126: 3.514 | X126: 0 | Y126: 2.625 | Z126: -0.889 | AA126: -0.889 | AB126: закрыт
A127: 118 | B127: ПС 35/6 кВ № 4 | C127: 4+4 | D127: 8 | E127: 3.14 | F127: 0.85 | G127: 30 | H127: 2.29 | I127: 0 | J127: 4.2 | K127: 1.91 | L127: 1.91 | M127: открыт | N127: 0.93 | P127: 118 | Q127: ПС 35/6 кВ № 4 | R127: 4+4 | S127: 0.283 | T127: 3.423 | U127: 0.85 | V127: 30 | W127: 2.573 | X127: 0 | Y127: 4.2 | Z127: 1.627 | AA127: 1.627 | AB127: открыт
A128: 119 | B128: ПС 35/6 кВ Грязи-город | C128: 6,3+5,6 | D128: 11.9 | E128: 5.84 | F128: 1.61 | G128: 50 | H128: 4.23 | I128: 0 | J128: =5.6*1.05 -> 5.88 | K128: 1.65 | L128: 1.65 | M128: открыт | N128: 0.968 | P128: 119 | Q128: ПС 35/6 кВ Грязи-город | R128: 6,3+5,6 | S128: 0.602 | T128: 6.442 | U128: 1.61 | V128: 50 | W128: 4.832 | X128: 0 | Y128: 5.88 | Z128: 1.048 | AA128: 1.048 | AB128: открыт
A129: 120 | B129: ПС 35/10 кВ Бутырки | C129: 5,6+6,3 | D129: 11.9 | E129: 7.75 | F129: 0 | G129: 0 | H129: 7.75 | I129: 0 | J129: =5.6*1.05 -> 5.88 | K129: -1.87 | L129: -1.87 | M129: закрыт | N129: 0.976 | P129: 120 | Q129: ПС 35/10 кВ Бутырки | R129: 5,6+6,3 | S129: 3.698 | T129: 11.448 | U129: 0 | V129: 0 | W129: 11.448 | X129: 0 | Y129: 5.88 | Z129: -5.568 | AA129: -5.568 | AB129: закрыт
A130: 121 | B130: ПС 35/10 кВ Ярлуково | C130: 3,2+4 | D130: 7.2 | E130: 4.74 | F130: 0.45 | G130: 60 | H130: 4.29 | I130: 0 | J130: =3.2*1.05 -> 3.36 | K130: -0.93 | L130: -0.93 | M130: закрыт | N130: 0.96 | P130: 121 | Q130: ПС 35/10 кВ Ярлуково | R130: 3,2+4 | S130: 1.043 | T130: 5.783 | U130: 0.45 | V130: 60 | W130: 5.333 | X130: 0 | Y130: 3.36 | Z130: -1.973 | AA130: -1.973 | AB130: закрыт
A131: 122 | B131: ПС 35/10 кВ Княжья Байгора | C131: 1,6+1,6 | D131: 3.2 | E131: 0.8 | F131: 0.11 | G131: 40 | H131: 0.69 | I131: 0 | J131: =1.6*1.05 -> 1.68 | K131: 0.99 | L131: 0.99 | M131: открыт | N131: 0.903 | P131: 122 | Q131: ПС 35/10 кВ Княжья Байгора | R131: 1,6+1,6 | S131: 0.1 | T131: 0.9 | U131: 0.11 | V131: 40 | W131: 0.79 | X131: 0 | Y131: 1.68 | Z131: 0.89 | AA131: 0.89 | AB131: открыт
A132: 123 | B132: ПС 35/10 кВ Правда | C132: 4+2,5 | D132: 6.5 | E132: 1.36 | F132: 0 | G132: 0 | H132: 1.36 | I132: 0 | J132: =2.5*1.05 -> 2.625 | K132: 1.265 | L132: 1.265 | M132: открыт | N132: 0.937 | P132: 123 | Q132: ПС 35/10 кВ Правда | R132: 4+2,5 | S132: 0.05 | T132: 1.41 | U132: 0 | V132: 0 | W132: 1.41 | X132: 0 | Y132: 2.625 | Z132: 1.215 | AA132: 1.215 | AB132: открыт
A133: 124 | B133: ПС 35/10 кВ Красная Дубрава | C133: 2,5+2,5 | D133: 5 | E133: 0.86 | F133: 0.63 | G133: 90 | H133: =E133-F133 -> 0.23 | I133: 0 | J133: =2.5*1.05 -> 2.625 | K133: 2.395 | L133: 2.395 | M133: открыт | N133: 0.969 | P133: 124 | Q133: ПС 35/10 кВ Красная Дубрава | R133: 2,5+2,5 | S133: 0.047 | T133: =S133+E133 -> 0.907 | U133: 0.63 | V133: 90 | W133: 0.277 | X133: 0 | Y133: 2.625 | Z133: 2.348 | AA133: 2.348 | AB133: открыт
A134: 125 | B134: ПС 35/10 кВ Матыра | C134: 4+3,2 | D134: 7.2 | E134: 4.24 | F134: 0 | G134: 0 | H134: 4.24 | I134: 0 | J134: =3.2*1.05 -> 3.36 | K134: -0.88 | L134: -0.88 | M134: закрыт | N134: 0.979 | P134: 125 | Q134: ПС 35/10 кВ Матыра | R134: 4+3,2 | S134: 0.015 | T134: 4.255 | U134: 0 | V134: 0 | W134: 4.255 | X134: 0 | Y134: 3.36 | Z134: -0.895 | AA134: -0.895 | AB134: закрыт
A135: 126 | B135: ПС 35/10 кВ Вперед | C135: 4+4 | D135: 8 | E135: 0.37 | F135: 0 | G135: 0 | H135: 0.37 | I135: 0 | J135: 4.2 | K135: 3.83 | L135: 3.83 | M135: открыт | N135: 0.97 | P135: 126 | Q135: ПС 35/10 кВ Вперед | R135: 4+4 | S135: 0.13 | T135: 0.5 | U135: 0 | V135: 0 | W135: 0.5 | X135: 0 | Y135: 4.2 | Z135: 3.7 | AA135: 3.7 | AB135: открыт
A136: 127 | B136: ПС 35/10 кВ Малей | C136: 4+2,5 | D136: 6.5 | E136: 0.38 | F136: 0.2 | G136: 60 | H136: 0.18 | I136: 0 | J136: =2.5*1.05 -> 2.625 | K136: 2.445 | L136: 2.445 | M136: открыт | N136: 0.854 | P136: 127 | Q136: ПС 35/10 кВ Малей | R136: 4+2,5 | S136: 0.617 | T136: 0.997 | U136: 0.2 | V136: 60 | W136: 0.797 | X136: 0 | Y136: 2.625 | Z136: 1.828 | AA136: 1.828 | AB136: открыт
A137: 128 | B137: ПС 35/10 кВ СХТ | C137: 2,5+1,6 | D137: 4.1 | E137: 1.46 | F137: 0.5 | G137: 30 | H137: 0.96 | I137: 0 | J137: =1.6*1.05 -> 1.68 | K137: 0.72 | L137: 0.72 | M137: открыт | N137: 0.95 | P137: 128 | Q137: ПС 35/10 кВ СХТ | R137: 2,5+1,6 | S137: 0.481 | T137: 1.941 | U137: 0.5 | V137: 30 | W137: 1.441 | X137: 0 | Y137: 1.68 | Z137: 0.239 | AA137: 0.239 | AB137: открыт
A138: 129 | B138: ПС 35/10 кВ Сошки | C138: 4+4 | D138: 8 | E138: 0.77 | F138: 0.6 | G138: 60 | H138: 0.17 | I138: 0 | J138: 4.2 | K138: 4.03 | L138: 4.03 | M138: открыт | N138: 0.953 | P138: 129 | Q138: ПС 35/10 кВ Сошки | R138: 4+4 | S138: 0.088 | T138: 0.858 | U138: 0.6 | V138: 60 | W138: 0.258 | X138: 0 | Y138: 4.2 | Z138: 3.942 | AA138: 3.942 | AB138: открыт
A139: 130 | B139: ПС 35/6 кВ Таволжанка | C139: 4+4 | D139: 8 | E139: 5.68 | F139: 0.7 | G139: 40 | H139: 4.98 | I139: 0 | J139: 4.2 | K139: -0.78 | L139: -0.78 | M139: закрыт | N139: 0.963 | P139: 130 | Q139: ПС 35/6 кВ Таволжанка | R139: 4+4 | S139: 1.32 | T139: 7 | U139: 0.7 | V139: 40 | W139: 6.3 | X139: 0 | Y139: 4.2 | Z139: -2.1 | AA139: -2.1 | AB139: закрыт
A140: 131 | B140: ПС 35/10 кВ Трубетчино | C140: 2,5+2,5 | D140: 5 | E140: 1.59 | F140: 0 | G140: 0 | H140: 1.59 | I140: 0 | J140: =2.5*1.05 -> 2.625 | K140: 1.035 | L140: 1.035 | M140: открыт | N140: 0.907 | P140: 131 | Q140: ПС 35/10 кВ Трубетчино | R140: 2,5+2,5 | S140: 0.08 | T140: 1.67 | U140: 0 | V140: 0 | W140: 1.67 | X140: 0 | Y140: 2.625 | Z140: 0.955 | AA140: 0.955 | AB140: открыт
A141: 132 | B141: ПС 35/10 кВ Ратчино | C141: 2,5+2,5 | D141: 5 | E141: 1.09 | F141: 0 | G141: 0 | H141: 1.09 | I141: 0 | J141: =2.5*1.05 -> 2.625 | K141: 1.535 | L141: 1.535 | M141: открыт | N141: 0.85 | P141: 132 | Q141: ПС 35/10 кВ Ратчино | R141: 2,5+2,5 | S141: 0.075 | T141: 1.165 | U141: 0 | V141: 0 | W141: 1.165 | X141: 0 | Y141: 2.625 | Z141: 1.46 | AA141: 1.46 | AB141: открыт
A142: 133 | B142: ПС 35/10 кВ Каликино | C142: 3,2+3,2 | D142: 6.4 | E142: 2.15 | F142: 0 | G142: 0 | H142: 2.15 | I142: 0 | J142: =3.2*1.05 -> 3.36 | K142: 1.21 | L142: 1.21 | M142: открыт | N142: 0.877 | P142: 133 | Q142: ПС 35/10 кВ Каликино | R142: 3,2+3,2 | S142: 0.093 | T142: 2.243 | U142: 0 | V142: 0 | W142: 2.243 | X142: 0 | Y142: 3.36 | Z142: 1.117 | AA142: 1.117 | AB142: открыт
A143: 134 | B143: ПС 35/10 кВ Борисовка | C143: 4+2,5 | D143: 6.5 | E143: 3.39 | F143: 0 | G143: 0 | H143: 3.39 | I143: 0 | J143: =2.5*1.05 -> 2.625 | K143: -0.765 | L143: -0.765 | M143: закрыт | N143: 0.954 | P143: 134 | Q143: ПС 35/10 кВ Борисовка | R143: 4+2,5 | S143: 2.073 | T143: 5.463 | U143: 0 | V143: 0 | W143: 5.463 | X143: 0 | Y143: 2.625 | Z143: -2.838 | AA143: -2.838 | AB143: закрыт
A144: 135 | B144: ПС 35/10 кВ Введенка | C144: 4+4 | D144: 8 | E144: 4.12 | F144: 0 | G144: 0 | H144: 4.12 | I144: 0 | J144: 4.2 | K144: 0.08 | L144: 0.08 | M144: открыт | N144: 0.975 | P144: 135 | Q144: ПС 35/10 кВ Введенка | R144: 4+4 | S144: 5.911 | T144: 10.031 | U144: 0 | V144: 0 | W144: 10.031 | X144: 0 | Y144: 4.2 | Z144: -5.831 | AA144: -5.831 | AB144: закрыт
A145: 136 | B145: ПС 35/10 кВ Грязное | C145: 4+4 | D145: 8 | E145: 1.3 | F145: 0 | G145: 0 | H145: 1.3 | I145: 0 | J145: 4.2 | K145: 2.9 | L145: 2.9 | M145: открыт | N145: 0.996 | P145: 136 | Q145: ПС 35/10 кВ Грязное | R145: 4+4 | S145: 1.184 | T145: 2.484 | U145: 0 | V145: 0 | W145: 2.484 | X145: 0 | Y145: 4.2 | Z145: 1.716 | AA145: 1.716 | AB145: открыт
A146: 137 | B146: ПС 35/10 кВ Борино | C146: 4+4 | D146: 8 | E146: 5.09 | F146: 0.86 | G146: 75 | H146: 4.23 | I146: 0 | J146: 4.2 | K146: -0.03 | L146: -0.03 | M146: открыт | N146: 0.926 | P146: 137 | Q146: ПС 35/10 кВ Борино | R146: 4+4 | S146: 2.03 | T146: 7.12 | U146: 0.86 | V146: 75 | W146: 6.26 | X146: 0 | Y146: =4*1.05 -> 4.2 | Z146: -2.06 | AA146: -2.06 | AB146: закрыт
A147: 138 | B147: ПС 35/10 кВ Частая Дубрава | C147: 2,5+2,5 | D147: 5 | E147: 1.63 | F147: 1.44 | G147: 75 | H147: 0.19 | I147: 0 | J147: =2.5*1.05 -> 2.625 | K147: 2.435 | L147: 2.435 | M147: открыт | N147: 0.927 | P147: 138 | Q147: ПС 35/10 кВ Частая Дубрава | R147: 2,5+2,5 | S147: 2.863 | T147: 4.493 | U147: 1.44 | V147: 75 | W147: 3.053 | X147: 0 | Y147: 2.625 | Z147: -0.428 | AA147: -0.428 | AB147: закрыт
A148: 139 | B148: ПС 35/10 кВ Троицкая | C148: 2,5+4 | D148: 6.5 | E148: 2.79 | F148: 0 | G148: 0 | H148: 2.79 | I148: 0 | J148: =2.5*1.05 -> 2.625 | K148: -0.165 | L148: -0.165 | M148: закрыт | N148: 0.956 | P148: 139 | Q148: ПС 35/10 кВ Троицкая | R148: 2,5+4 | S148: 0.732 | T148: 3.522 | U148: 0 | V148: 0 | W148: 3.522 | X148: 0 | Y148: 2.625 | Z148: -0.897 | AA148: -0.897 | AB148: закрыт
A149: 140 | B149: ПС 35/6 кВ Вешаловка | C149: 2,5+2,5 | D149: 5 | E149: 0.99 | F149: 0 | G149: 0 | H149: 0.99 | I149: 0 | J149: =2.5*1.05 -> 2.625 | K149: 1.635 | L149: 1.635 | M149: открыт | N149: 0.928 | P149: 140 | Q149: ПС 35/6 кВ Вешаловка | R149: 2,5+2,5 | S149: 0.198 | T149: 1.188 | U149: 0 | V149: 0 | W149: 1.188 | X149: 0 | Y149: 2.625 | Z149: 1.437 | AA149: 1.437 | AB149: открыт
A150: 141 | B150: ПС 35/10 кВ Пружинки | C150: 2,5+2,5 | D150: 5 | E150: 0.81 | F150: 0 | G150: 0 | H150: 0.81 | I150: 0 | J150: =2.5*1.05 -> 2.625 | K150: 1.815 | L150: 1.815 | M150: открыт | N150: 0.952 | P150: 141 | Q150: ПС 35/10 кВ Пружинки | R150: 2,5+2,5 | S150: 0.197 | T150: 1.007 | U150: 0 | V150: 0 | W150: 1.007 | X150: 0 | Y150: 2.625 | Z150: 1.618 | AA150: 1.618 | AB150: открыт
A151: 142 | B151: ПС 35/10 кВ Стебаево | C151: 2,5+2,5 | D151: 5 | E151: 0.62 | F151: 0.34 | G151: 80 | H151: 0.28 | I151: 0 | J151: =2.5*1.05 -> 2.625 | K151: 2.345 | L151: 2.345 | M151: открыт | N151: 0.939 | P151: 142 | Q151: ПС 35/10 кВ Стебаево | R151: 2,5+2,5 | S151: 0.318 | T151: 0.938 | U151: 0.34 | V151: 80 | W151: 0.598 | X151: 0 | Y151: 2.625 | Z151: 2.027 | AA151: 2.027 | AB151: открыт
A152: 143 | B152: ПС 35/10 кВ Хлебопродукты | C152: 6,3+6,3 | D152: 12.6 | E152: 5.75 | F152: 0.74 | G152: 30 | H152: 5.01 | I152: 0 | J152: =6.3*1.05 -> 6.615 | K152: 1.605 | L152: 1.605 | M152: открыт | N152: 0.955 | P152: 143 | Q152: ПС 35/10 кВ Хлебопродукты | R152: 6,3+6,3 | S152: 0.738 | T152: 6.488 | U152: 0.74 | V152: 30 | W152: 5.748 | X152: 0 | Y152: 6.615 | Z152: 0.867 | AA152: 0.867 | AB152: открыт
A153: 144 | B153: ПС 35/10 кВ Сенцово | C153: 10+10 | D153: 20 | E153: 5.89 | F153: 0.26 | G153: 40 | H153: 5.63 | I153: 0 | J153: 10.5 | K153: 4.87 | L153: 4.87 | M153: открыт | N153: 0.889 | P153: 144 | Q153: ПС 35/10 кВ Сенцово | R153: 10+10 | S153: 0.723 | T153: 6.613 | U153: 0.26 | V153: 40 | W153: 6.353 | X153: 0 | Y153: 10.5 | Z153: 4.147 | AA153: 4.147 | AB153: открыт
A154: 145 | B154: ПС 35/10 кВ Мясокомбинат | C154: 6,3+6,3 | D154: 12.6 | E154: 4.97 | F154: 2 | G154: 60 | H154: 2.97 | I154: 0 | J154: 6.62 | K154: 3.65 | L154: 3.65 | M154: открыт | N154: 0.89 | P154: 145 | Q154: ПС 35/10 кВ Мясокомбинат | R154: 6,3+6,3 | S154: 0.778 | T154: 5.748 | U154: 2 | V154: 60 | W154: 3.748 | X154: 0 | Y154: 6.62 | Z154: 2.872 | AA154: 2.872 | AB154: открыт
A155: 146 | B155: ПС 35/6 кВ Птицефабрика | C155: 4+4 | D155: 8 | E155: 1.79 | F155: 0 | G155: 0 | H155: 1.79 | I155: 0 | J155: 4.2 | K155: 2.41 | L155: 2.41 | M155: открыт | N155: 0.922 | P155: 146 | Q155: ПС 35/6 кВ Птицефабрика | R155: 4+4 | S155: 2.491 | T155: 4.281 | U155: 0 | V155: 0 | W155: 4.281 | X155: 0 | Y155: 4.2 | Z155: -0.081 | AA155: -0.081 | AB155: закрыт
A156: 147 | B156: ПС 35/6 кВ Водозабор | C156: 10+10 | D156: 20 | E156: 1.12 | F156: 0 | G156: 0 | H156: 1.12 | I156: 0 | J156: 10.5 | K156: 9.38 | L156: 9.38 | M156: открыт | N156: 0.894 | P156: 147 | Q156: ПС 35/6 кВ Водозабор | R156: 10+10 | S156: 0.832 | T156: 1.952 | U156: 0 | V156: 0 | W156: 1.952 | X156: 0 | Y156: 10.5 | Z156: 8.548 | AA156: 8.548 | AB156: открыт
A157: 148 | B157: ПС 35/10 кВ Петровская | C157: 2,5+4 | D157: 6.5 | E157: 0.63 | F157: 0 | G157: 0 | H157: 0.63 | I157: 0 | J157: =2.5*1.05 -> 2.625 | K157: 1.995 | L157: 1.995 | M157: открыт | N157: 0.918 | P157: 148 | Q157: ПС 35/10 кВ Петровская | R157: 2,5+4 | S157: 0.021 | T157: 0.651 | U157: 0 | V157: 0 | W157: 0.651 | X157: 0 | Y157: 2.625 | Z157: 1.974 | AA157: 1.974 | AB157: открыт
A158: 149 | B158: ПС 35/10 кВ Лебедянка | C158: 2,5+2,5 | D158: 5 | E158: 0.64 | F158: 0 | G158: 0 | H158: 0.64 | I158: 0 | J158: =2.5*1.05 -> 2.625 | K158: 1.985 | L158: 1.985 | M158: открыт | N158: 0.847 | P158: 149 | Q158: ПС 35/10 кВ Лебедянка | R158: 2,5+2,5 | S158: 0.54 | T158: 1.18 | U158: 0 | V158: 0 | W158: 1.18 | X158: 0 | Y158: 2.625 | Z158: 1.445 | AA158: 1.445 | AB158: открыт
A159: 150 | B159: ПС 35/10 кВ Новочеркутино | C159: 4+4 | D159: 8 | E159: 1.26 | F159: 0 | G159: 0 | H159: 1.26 | I159: 0 | J159: 4.2 | K159: 2.94 | L159: 2.94 | M159: открыт | N159: 0.984 | P159: 150 | Q159: ПС 35/10 кВ Новочеркутино | R159: 4+4 | S159: 0.41 | T159: 1.67 | U159: 0 | V159: 0 | W159: 1.67 | X159: 0 | Y159: 4.2 | Z159: 2.53 | AA159: 2.53 | AB159: открыт
A160: 151 | B160: ПС 35/10 кВ Ивановка | C160: 2,5+2,5 | D160: 5 | E160: 0.9 | F160: 0 | G160: 0 | H160: 0.9 | I160: 0 | J160: =2.5*1.05 -> 2.625 | K160: 1.725 | L160: 1.725 | M160: открыт | N160: 0.93 | P160: 151 | Q160: ПС 35/10 кВ Ивановка | R160: 2,5+2,5 | S160: 0.055 | T160: 0.955 | U160: 0 | V160: 0 | W160: 0.955 | X160: 0 | Y160: 2.625 | Z160: 1.67 | AA160: 1.67 | AB160: открыт
A161: 152 | B161: ПС 35/10 кВ Поддубровка | C161: 2,5+2,5 | D161: 5 | E161: 1.03 | F161: 0.44 | G161: 60 | H161: 0.59 | I161: 0 | J161: =2.5*1.05 -> 2.625 | K161: 2.035 | L161: 2.035 | M161: открыт | N161: 0.915 | P161: 152 | Q161: ПС 35/10 кВ Поддубровка | R161: 2,5+2,5 | S161: 0.177 | T161: 1.207 | U161: 0.44 | V161: 60 | W161: 0.767 | X161: 0 | Y161: 2.625 | Z161: 1.858 | AA161: 1.858 | AB161: открыт
A162: 153 | B162: ПС 35/10 кВ Плавица | C162: 1,6+1,6 | D162: 3.2 | E162: 1.26 | F162: 0 | G162: 0 | H162: 1.26 | I162: 0 | J162: =1.6*1.05 -> 1.68 | K162: 0.42 | L162: 0.42 | M162: открыт | N162: 0.939 | P162: 153 | Q162: ПС 35/10 кВ Плавица | R162: 1,6+1,6 | S162: 0.35 | T162: 1.61 | U162: 0 | V162: 0 | W162: 1.61 | X162: 0 | Y162: 1.68 | Z162: 0.07 | AA162: 0.07 | AB162: открыт
A163: 154 | B163: ПС 35/10 кВ Паршиновка | C163: 1,6+2,5 | D163: 4.1 | E163: =((12*10.5)/1000)*1.73 -> 0.21798 | F163: 0 | G163: 0 | H163: 0.21798 | I163: 0 | J163: 1.68 | K163: 1.46202 | L163: 1.46202 | M163: открыт | N163: 0.883 | P163: 154 | Q163: ПС 35/10 кВ Паршиновка | R163: 1,6+2,5 | S163: 0.007 | T163: 0.22498 | U163: 0 | V163: 0 | W163: 0.22498 | X163: 0 | Y163: 1.68 | Z163: 1.45502 | AA163: 1.45502 | AB163: открыт
A164: 155 | B164: ПС 35/10 кВ Талицкий Чамлык | C164: 3,2+4 | D164: 7.2 | E164: 1.69 | F164: 0 | G164: 0 | H164: 1.69 | I164: 0 | J164: =3.2*1.05 -> 3.36 | K164: 1.67 | L164: 1.67 | M164: открыт | N164: 0.891 | P164: 155 | Q164: ПС 35/10 кВ Талицкий Чамлык | R164: 3,2+4 | S164: 0.024 | T164: 1.714 | U164: 0 | V164: 0 | W164: 1.714 | X164: 0 | Y164: 3.36 | Z164: 1.646 | AA164: 1.646 | AB164: открыт
A165: 156 | B165: ПС 35/10 кВ Демшинка | C165: 2,5+2,5 | D165: 5 | E165: 0.7 | F165: 0 | G165: 0 | H165: =E165-F165 -> 0.7 | I165: 0 | J165: =2.5*1.05 -> 2.625 | K165: =J165-I165-H165 -> 1.925 | L165: =K165 -> 1.925 | M165: открыт | N165: 0.969 | P165: 156 | Q165: ПС 35/10 кВ Демшинка | R165: 2,5+2,5 | S165: 0.3 | T165: =S165+E165 -> 1 | U165: 0 | V165: 0 | W165: 1 | X165: 0 | Y165: 2.625 | Z165: 1.625 | AA165: 1.625 | AB165: открыт
A166: 157 | B166: ПС 35/10 кВ Березняговка | C166: 1,6+1,6 | D166: 3.2 | E166: 1.2 | F166: 0.7 | G166: 130 | H166: 0.5 | I166: 0 | J166: =1.6*1.05 -> 1.68 | K166: 1.18 | L166: 1.18 | M166: открыт | N166: 0.93 | P166: 157 | Q166: ПС 35/10 кВ Березняговка | R166: 1,6+1,6 | S166: 0.03 | T166: 1.23 | U166: 0.7 | V166: 130 | W166: 0.53 | X166: 0 | Y166: 1.68 | Z166: 1.15 | AA166: 1.15 | AB166: открыт
A167: 158 | B167: ПС 35/10 кВ Дмитриевка | C167: 2,5+2,5 | D167: 5 | E167: 0.66 | F167: 0.2 | G167: 70 | H167: 0.46 | I167: 0 | J167: =2.5*1.05 -> 2.625 | K167: 2.165 | L167: 2.165 | M167: открыт | N167: 0.972 | P167: 158 | Q167: ПС 35/10 кВ Дмитриевка | R167: 2,5+2,5 | T167: 0.66 | U167: 0.2 | V167: 70 | W167: 0.46 | X167: 0 | Y167: 2.625 | Z167: 2.165 | AA167: 2.165 | AB167: открыт
A168: 159 | B168: ПС 35/10 кВ Пашково | C168: 2,5+2,5 | D168: 5 | E168: 1.66 | F168: 1 | G168: 130 | H168: 0.66 | I168: 0 | J168: =2.5*1.05 -> 2.625 | K168: 1.965 | L168: 1.965 | M168: открыт | N168: 0.914 | P168: 159 | Q168: ПС 35/10 кВ Пашково | R168: 2,5+2,5 | S168: 0.032 | T168: 1.692 | U168: 1 | V168: 130 | W168: =T168-U168 -> 0.692 | X168: 0 | Y168: 2.625 | Z168: =Y168-X168-W168 -> 1.933 | AA168: =Z168 -> 1.933 | AB168: открыт
A169: 160 | B169: ПС 35/10 кВ Московка | C169: 1,6+1,6 | D169: 3.2 | E169: 0.78 | F169: 0 | G169: 0 | H169: 0.78 | I169: 0 | J169: =1.6*1.05 -> 1.68 | K169: 0.9 | L169: 0.9 | M169: открыт | N169: 0.905 | P169: 160 | Q169: ПС 35/10 кВ Московка | R169: 1,6+1,6 | S169: 0.042 | T169: 0.822 | U169: 0 | V169: 0 | W169: 0.822 | X169: 0 | Y169: 1.68 | Z169: 0.858 | AA169: 0.858 | AB169: открыт
A170: 161 | B170: ПС 35/10 кВ Бочиновка | C170: 4+4 | D170: 8 | E170: 2.51 | F170: 1.1 | G170: 90 | H170: 1.41 | I170: 0 | J170: 4.2 | K170: 2.79 | L170: 2.79 | M170: открыт | N170: 0.9 | P170: 161 | Q170: ПС 35/10 кВ Бочиновка | R170: 4+4 | S170: 1.686 | T170: 4.196 | U170: 1.1 | V170: 90 | W170: 3.096 | X170: 0 | Y170: 4.2 | Z170: 1.104 | AA170: 1.104 | AB170: открыт
A171: 162 | B171: ПС 35/10 кВ Федоровка | C171: 2,5+2,5 | D171: 5 | E171: 0.54 | F171: 0.2 | G171: 90 | H171: 0.34 | I171: 0 | J171: =2.5*1.05 -> 2.625 | K171: 2.285 | L171: 2.285 | M171: открыт | N171: 0.91 | P171: 162 | Q171: ПС 35/10 кВ Федоровка | R171: 2,5+2,5 | S171: 0.13 | T171: 0.67 | U171: 0.2 | V171: 90 | W171: 0.47 | X171: 0 | Y171: 2.625 | Z171: 2.155 | AA171: 2.155 | AB171: открыт
A172: 163 | B172: ПС 35/10 кВ Куликово | C172: 2,5+2,5 | D172: 5 | E172: 0.65 | F172: 0 | G172: 0 | H172: 0.65 | I172: 0 | J172: =2.5*1.05 -> 2.625 | K172: 1.975 | L172: 1.975 | M172: открыт | N172: 0.95 | P172: 163 | Q172: ПС 35/10 кВ Куликово | R172: 2,5+2,5 | S172: 0.059 | T172: 0.709 | U172: 0 | V172: 0 | W172: 0.709 | X172: 0 | Y172: 2.625 | Z172: 1.916 | AA172: 1.916 | AB172: открыт
A173: 164 | B173: ПС 35/10 кВ Конь-Колодезь | C173: 2,5+2,5 | D173: 5 | E173: 1.12 | F173: 0 | G173: 0 | H173: 1.12 | I173: 0 | J173: =2.5*1.05 -> 2.625 | K173: 1.505 | L173: 1.505 | M173: открыт | N173: 0.854 | P173: 164 | Q173: ПС 35/10 кВ Конь-Колодезь | R173: 2,5+2,5 | S173: 0.732 | T173: 1.852 | U173: 0 | V173: 0 | W173: 1.852 | X173: 0 | Y173: 2.625 | Z173: 0.773 | AA173: 0.773 | AB173: открыт
A174: 165 | B174: ПС 35/10 кВ Дмитряшевка | C174: 2,5+2,5 | D174: 5 | E174: 0.42 | F174: 0 | G174: 0 | H174: 0.42 | I174: 0 | J174: =2.5*1.05 -> 2.625 | K174: 2.205 | L174: 2.205 | M174: открыт | N174: 0.942 | P174: 165 | Q174: ПС 35/10 кВ Дмитряшевка | R174: 2,5+2,5 | S174: 0.08 | T174: 0.5 | U174: 0 | V174: 0 | W174: 0.5 | X174: 0 | Y174: 2.625 | Z174: 2.125 | AA174: 2.125 | AB174: открыт
A175: 166 | B175: ПС 35/10 кВ Речная | C175: 4+4 | D175: 8 | E175: 1.55 | F175: 0 | G175: 0 | H175: 1.55 | I175: 0 | J175: 4.2 | K175: 2.65 | L175: 2.65 | M175: открыт | N175: 0.846 | P175: 166 | Q175: ПС 35/10 кВ Речная | R175: 4+4 | S175: 1.38 | T175: 2.93 | U175: 0 | V175: 0 | W175: 2.93 | X175: 0 | Y175: 4.2 | Z175: 1.27 | AA175: 1.27 | AB175: открыт
A176: 167 | B176: ПС 35/10 кВ Негачевка | C176: 2,5+2,5 | D176: 5 | E176: 0.47 | F176: 0 | G176: 0 | H176: 0.47 | I176: 0 | J176: =2.5*1.05 -> 2.625 | K176: 2.155 | L176: 2.155 | M176: открыт | N176: 0.886 | P176: 167 | Q176: ПС 35/10 кВ Негачевка | R176: 2,5+2,5 | S176: 0.017 | T176: 0.487 | U176: 0 | V176: 0 | W176: 0.487 | X176: 0 | Y176: 2.625 | Z176: 2.138 | AA176: 2.138 | AB176: открыт
A177: 168 | B177: ПС 35/10 кВ Карамышево | C177: 10+10 | D177: 20 | E177: 0.78 | F177: 0 | G177: 0 | H177: 0.78 | I177: 0 | J177: 10.5 | K177: 9.72 | L177: 9.72 | M177: открыт | N177: 0.974 | P177: 168 | Q177: ПС 35/10 кВ Карамышево | R177: 10+10 | S177: 0.267 | T177: 1.047 | U177: 0 | V177: 0 | W177: 1.047 | X177: 0 | Y177: 10.5 | Z177: 9.453 | AA177: =Z177 -> 9.453 | AB177: открыт
A178: 169 | B178: ПС 35/10 кВ Тюшевка | C178: 4+4 | D178: 8 | E178: 0.88 | F178: 0 | G178: 0 | H178: 0.88 | I178: 0 | J178: =4*1.05 -> 4.2 | K178: 3.32 | L178: 3.32 | M178: открыт | N178: 1 | P178: 169 | Q178: ПС 35/10 кВ Тюшевка | R178: 4+4 | S178: 0.015 | T178: 0.895 | U178: 0 | V178: 0 | W178: 0.895 | X178: 0 | Y178: 4.2 | Z178: 3.305 | AA178: 3.305 | AB178: открыт
A179: 170 | B179: ПС 35/10 кВ Сселки | C179: 10+10 | D179: 20 | E179: 0.38 | F179: 0 | G179: 0 | H179: 0.38 | I179: 0 | J179: =10*1.05 -> 10.5 | K179: =J179-I179-H179 -> 10.12 | L179: =K179 -> 10.12 | M179: открыт | N179: 0.99 | P179: 170 | Q179: ПС 35/10 кВ Сселки | R179: 10+10 | S179: 6.286 | T179: 6.666 | U179: 0 | V179: 0 | W179: 6.666 | X179: 0 | Y179: =10*1.05 -> 10.5 | Z179: =Y179-X179-W179 -> 3.834 | AA179: =Z179 -> 3.834 | AB179: открыт
A180: Двух- и более трансформаторные ПС (на три уровня напряжения) | P180: Двух- и более трансформаторные ПС (на три уровня напряжения)
A181: 171 | B181: ПС 110/35/10 кВ Тербуны-110 | C181: 10+10 | D181: 20 | E181: =E182+E183 -> 11.41 | F181: =F182+F183 -> 1 | H181: =E181-F181 -> 10.41 | I181: 0 | J181: 10.5 | K181: =J181-I181-H181 -> 0.09 | L181: =MIN(K181:K183) -> 0.09 | M181: открыт | P181: 171 | Q181: ПС 110/35/10 кВ Тербуны-110 | R181: 10+10 | S181: =S182+S183 -> 1.848 | T181: =T182+T183 -> 13.258 | U181: =U182+U183 -> 1 | W181: =T181-U181 -> 12.258 | X181: 0 | Y181: 10.5 | Z181: -1.758 | AA181: =MIN(Z181:Z183) -> -1.758 | AB181: закрыт
B182: Ном. Мощность СН, МВА | C182: 10+10 | E182: 3.19 | F182: 1 | G182: 30 | H182: 2.19 | I182: 0 | J182: 10.5 | K182: =J182-I182-H182 -> 8.31 | N182: 0.93 | Q182: Ном. Мощность СН, МВА | R182: 10+10 | S182: =S63+S68+S73+S15+S18 -> 0.514 | T182: =S182+E182 -> 3.704 | U182: 1 | V182: 30 | W182: =T182-U182 -> 2.704 | X182: 0 | Y182: 10.5 | Z182: 7.796
B183: Ном. мощность НН, МВА | C183: 10+10 | E183: 8.22 | F183: 0 | G183: 0 | H183: 8.22 | I183: 0 | J183: 10.5 | K183: 2.28 | N183: 0.93 | Q183: Ном. мощность НН, МВА | R183: 10+10 | S183: 1.334 | T183: =S183+E183 -> 9.554 | U183: 0 | V183: 0 | W183: 9.554 | X183: 0 | Y183: 10.5 | Z183: 0.946
A184: 172 | B184: ПС 110/35/10 кВ Долгоруково | C184: 6,3+10 | D184: 16.3 | E184: =E185+E186 -> 10.9 | F184: =F185+F186 -> 3.5 | H184: 7.4 | I184: 0 | J184: =6.3*1.05 -> 6.615 | K184: -0.785 | L184: =MIN(K184:K186) -> -0.785 | M184: закрыт | P184: 172 | Q184: ПС 110/35/10 кВ Долгоруково | R184: 6,3+10 | S184: =S185+S186 -> 1.577 | T184: =T185+T186 -> 12.477 | U184: =U185+U186 -> 3.5 | W184: 8.977 | X184: 0 | Y184: 6.615 | Z184: -2.362 | AA184: =MIN(Z184:Z186) -> -2.362 | AB184: закрыт
B185: Ном. Мощность СН, МВА | C185: 6,3+10 | E185: 7.35 | F185: 2 | G185: 45 | H185: 5.35 | I185: 0 | J185: =6.3*1.05 -> 6.615 | K185: 1.265 | N185: 0.88 | Q185: Ном. Мощность СН, МВА | R185: 6,3+10 | S185: =S14+S11+S87+S85+S70+S71+S82 -> 1.21 | T185: =S185+E185 -> 8.56 | U185: 2 | V185: 45 | W185: 6.56 | X185: 0 | Y185: 6.615 | Z185: 0.055
B186: Ном. мощность НН, МВА | C186: 6,3+10 | E186: 3.55 | F186: 1.5 | G186: 140 | H186: 2.05 | I186: 0 | J186: =6.3*1.05 -> 6.615 | K186: 4.565 | N186: 0.94 | Q186: Ном. мощность НН, МВА | R186: 6,3+10 | S186: 0.367 | T186: =S186+E186 -> 3.917 | U186: 1.5 | V186: 140 | W186: 2.417 | X186: 0 | Y186: 6.615 | Z186: 4.198
A187: 173 | B187: ПС 110/35/10 кВ Волово | C187: 10+10 | D187: 20 | E187: =E188+E189 -> 3.13 | F187: =F188+F189 -> 1.5 | H187: 1.63 | I187: 0 | J187: 10.5 | K187: 8.87 | L187: =MIN(K187:K189) -> 7.88 | M187: открыт | P187: 173 | Q187: ПС 110/35/10 кВ Волово | R187: 10+10 | S187: =S188+S189 -> 1.21 | T187: =T188+T189 -> 4.34 | U187: =U188+U189 -> 1.5 | W187: 2.84 | X187: 0 | Y187: 10.5 | Z187: 7.66 | AA187: =MIN(Z187:Z189) -> 6.67 | AB187: открыт
B188: Ном. Мощность СН, МВА | C188: 10+10 | E188: 0.01 | F188: 1 | G188: 60 | H188: -0.99 | I188: 0 | J188: 10.5 | K188: 11.49 | N188: 0.81 | Q188: Ном. Мощность СН, МВА | R188: 10+10 | T188: =S188+E188 -> 0.01 | U188: 1 | V188: 60 | W188: -0.99 | X188: 0 | Y188: 10.5 | Z188: 11.49
B189: Ном. мощность НН, МВА | C189: 10+10 | E189: 3.12 | F189: 0.5 | G189: 120 | H189: 2.62 | I189: 0 | J189: 10.5 | K189: 7.88 | N189: 0.91 | Q189: Ном. мощность НН, МВА | R189: 10+10 | S189: 1.21 | T189: =S189+E189 -> 4.33 | U189: 0.5 | V189: 120 | W189: 3.83 | X189: 0 | Y189: 10.5 | Z189: 6.67
A190: 174 | B190: ПС 110/35/10 кВ Измалково | C190: 10+10 | D190: 20 | E190: =E191+E192 -> 7.51 | F190: =F191+F192 -> 1.35 | H190: 6.16 | I190: 0 | J190: 10.5 | K190: 4.34 | L190: =MIN(K190:K192) -> 4.34 | M190: открыт | P190: 174 | Q190: ПС 110/35/10 кВ Измалково | R190: 10+10 | S190: =S191+S192 -> 2.952 | T190: =T191+T192 -> 10.462 | U190: =U191+U192 -> 1.35 | W190: 9.112 | X190: 0 | Y190: 10.5 | Z190: 1.388 | AA190: =MIN(Z190:Z192) -> 1.388 | AB190: открыт
B191: Ном. Мощность СН, МВА | C191: 10+10 | E191: 2.55 | F191: 0.85 | G191: 30 | H191: 1.7 | I191: 0 | J191: 10.5 | K191: 8.8 | N191: 0.97 | Q191: Ном. Мощность СН, МВА | R191: 10+10 | S191: =S81+S77+S16+S17 -> 0.052 | T191: =S191+E191 -> 2.602 | U191: 0.85 | V191: 30 | W191: 1.752 | X191: 0 | Y191: 10.5 | Z191: 8.748
B192: Ном. мощность НН, МВА | C192: 10+10 | E192: 4.96 | F192: 0.5 | G192: 30 | H192: 4.46 | I192: 0 | J192: 10.5 | K192: 6.04 | N192: 0.92 | Q192: Ном. мощность НН, МВА | R192: 10+10 | S192: 2.9 | T192: =S192+E192 -> 7.86 | U192: 0.5 | V192: 30 | W192: 7.36 | X192: 0 | Y192: 10.5 | Z192: 3.14
A193: 175 | B193: ПС 110/35/10 кВ Гороховская | C193: 16+16 | D193: 32 | E193: =E194+E195 -> 13.51 | F193: =F194+F195 -> 2.3 | H193: 11.21 | I193: 0 | J193: =16*1.05 -> 16.8 | K193: 5.59 | L193: =MIN(K193:K195) -> 5.59 | M193: открыт | P193: 175 | Q193: ПС 110/35/10 кВ Гороховская | R193: 16+16 | S193: =S194+S195 -> 3.33 | T193: =T194+T195 -> 16.84 | U193: =U194+U195 -> 2.3 | W193: 14.54 | X193: 0 | Y193: 16.8 | Z193: 2.26 | AA193: =MIN(Z193:Z195) -> 2.26 | AB193: открыт
B194: Ном. Мощность СН, МВА | C194: 16+16 | E194: 9.15 | F194: 1.8 | G194: 30 | H194: 7.35 | I194: 0 | J194: =16*1.05 -> 16.8 | K194: 9.45 | N194: 0.89 | Q194: Ном. Мощность СН, МВА | R194: 16+16 | S194: =S72+S75+S80+S61+S83+S69+S78 -> 1.472 | T194: =S194+E194 -> 10.622 | U194: 1.8 | V194: 30 | W194: 8.822 | X194: 0 | Y194: 16.8 | Z194: 7.978
B195: Ном. мощность НН, МВА | C195: 16+16 | E195: 4.36 | F195: 0.5 | G195: 60 | H195: 3.86 | I195: 0 | J195: =16*1.05 -> 16.8 | K195: 12.94 | N195: 0.96 | Q195: Ном. мощность НН, МВА | R195: 16+16 | S195: 1.858 | T195: =S195+E195 -> 6.218 | U195: 0.5 | V195: 60 | W195: 5.718 | X195: 0 | Y195: 16.8 | Z195: 11.082
A196: 176 | B196: ПС 110/35/10 кВ Донская | C196: 10+10 | D196: 20 | E196: =E197+E198 -> 4.67 | F196: =F197+F198 -> 2.7 | H196: 1.97 | I196: 0 | J196: 10.5 | K196: 8.53 | L196: =MIN(K196:K198) -> 7.07 | M196: открыт | P196: 176 | Q196: ПС 110/35/10 кВ Донская | R196: 10+10 | S196: =S197+S198 -> 1.587 | T196: =T197+T198 -> 6.257 | U196: =U197+U198 -> 2.7 | W196: 3.557 | X196: 0 | Y196: 10.5 | Z196: 6.943 | AA196: =MIN(Z196:Z198) -> 5.664 | AB196: открыт
B197: Ном. Мощность СН, МВА | C197: 10+10 | E197: 1.24 | F197: 2.7 | G197: 30 | H197: -1.46 | I197: 0 | J197: 10.5 | K197: 11.96 | N197: 0.95 | Q197: Ном. Мощность СН, МВА | R197: 10+10 | S197: =S94+S90+S20 -> 0.181 | T197: =S197+E197 -> 1.421 | U197: 2.7 | V197: 30 | W197: -1.279 | X197: 0 | Y197: 10.5 | Z197: 11.779
B198: Ном. мощность НН, МВА | C198: 10+10 | E198: 3.43 | F198: 0 | G198: 0 | H198: 3.43 | I198: 0 | J198: 10.5 | K198: 7.07 | N198: 0.91 | Q198: Ном. мощность НН, МВА | R198: 10+10 | S198: 1.406 | T198: =S198+E198 -> 4.836 | U198: 0 | V198: 0 | W198: 4.836 | X198: 0 | Y198: 10.5 | Z198: 5.664
A199: 177 | B199: ПС 110/35/10 кВ Лебедянь | C199: 16+16 | D199: 32 | E199: =E200+E201 -> 19.43 | F199: =F200+F201 -> 11.3 | H199: 8.13 | I199: 0 | J199: =16*1.05 -> 16.8 | K199: 8.67 | L199: =MIN(K199:K201) -> 8.67 | M199: открыт | P199: 177 | Q199: ПС 110/35/10 кВ Лебедянь | R199: 16+16 | S199: =S200+S201 -> 4.749 | T199: =T200+T201 -> 24.179 | U199: =U200+U201 -> 11.3 | W199: 12.879 | X199: 0 | Y199: 16.8 | Z199: 3.921 | AA199: =MIN(Z199:Z201) -> 3.921 | AB199: открыт
B200: Ном. Мощность СН, МВА | C200: 16+16 | E200: 8.3 | F200: 8.3 | G200: 60 | H200: 0 | I200: 0 | J200: =16*1.05 -> 16.8 | K200: 16.8 | N200: 0.92 | Q200: Ном. Мощность СН, МВА | R200: 16+16 | S200: =S100+S119+S101+S114 -> 1.561 | T200: =S200+E200 -> 9.861 | U200: 8.3 | V200: 60 | W200: 1.561 | X200: 0 | Y200: 16.8 | Z200: 15.239
B201: Ном. мощность НН, МВА | C201: 16+16 | E201: 11.13 | F201: 3 | G201: 120 | H201: 8.13 | I201: 0 | J201: =16*1.05 -> 16.8 | K201: 8.67 | N201: 0.97 | Q201: Ном. мощность НН, МВА | R201: 16+16 | S201: 3.188 | T201: =S201+E201 -> 14.318 | U201: 3 | V201: 120 | W201: 11.318 | X201: 0 | Y201: 16.8 | Z201: 5.482
... 70 more rows

Sheet Интерактивная карта
A5: Наименование объекта центра питания, класс напряжения | B5: Год ввода / Год реконструкции | C5: Установленная мощность трансформаторов | D5: Существующая нагрузка по замерам, МВА | E5: Фактический резерв мощности с учетом замеров режимного дня, МВА | F5: Мощность по заключенным договорам на ТП, МВА | G5: Мощность по договорам на ТП находящихся на исполнении, МВА | H5: Максимальная разрешенная мощность (по актам ТП), МВт | I5: Планируемые сроки снятия ограничения | J5: Текущий статус | K5: Перспективный статус | L5: Широта | M5: Долгота
A6: ПС 110/10кВ Лев Толстой | B6: 1964 | C6: 10 | D6: 2.5 | E6: 0 | F6: 0.821 | G6: 0.61575 | H6: 0 | J6: открыт | K6: закрыт | L6: 53.2169710924581 | M6: 39.4816246190518
A7: ПС 110/10 кВ Двуречки | B7: 1979 | C7: 6.3 | D7: 1.93 | E7: -1.93 | F7: 1.041 | G7: 0.78075 | H7: 0 | J7: открыт | K7: закрыт | L7: 52.4486092290405 | M7: 39.7159163518556
A8: ПС 35/10 кВ Веселое | B8: 1984 | C8: 2.5 | D8: 0.1 | E8: -0.03 | F8: 0.041 | G8: 0.03075 | H8: 0 | J8: открыт | K8: открыт | L8: 52.3525150743259 | M8: 38.0676900226417
A9: ПС 35/10 кВ Кр.Пальна | B9: 1965 | C9: 3.2 | D9: 0.79 | E9: -0.39 | F9: 0.519 | G9: 0.38925 | H9: 0 | J9: открыт | K9: закрыт | L9: 52.8577628106483 | M9: 38.487695690839
A10: ПС 35/10 кВ Каменка | B10: 1968 | C10: 2.5 | D10: 0.65 | E10: -0.65 | F10: 0.334 | G10: 0.2505 | H10: 0 | J10: открыт | K10: закрыт | L10: 52.8701001386934 | M10: 38.2525186358997
A11: ПС 35/10 кВ Красотыновка | B11: 1981 | C11: 2.5 | D11: 0.79 | E11: -0.5 | F11: 0.54 | G11: 0.405 | H11: 0 | J11: открыт | K11: закрыт | L11: 52.3057754067838 | M11: 38.1823795066869
A12: ПС 35/10 кВ Озёрки | B12: 1984 | C12: 2.5 | D12: 0.110028 | E12: -0.110028 | G12: 0 | H12: 0 | J12: открыт | K12: открыт | L12: 52.0841765721138 | M12: 38.7350564896252
A13: ПС 35/10 кВ Панкратовка | B13: 1973 | C13: 2.5 | D13: 0.76 | E13: -0.71 | F13: 0.015 | G13: 0.01125 | H13: 0 | J13: открыт | K13: закрыт | L13: 52.6481469564784 | M13: 38.0996776649148
A14: ПС 35/10 кВ Преображенье | B14: 1982 | C14: 2.5 | D14: 0.64 | E14: -0.48 | F14: 0.008 | G14: 0.006 | H14: 0 | J14: открыт | K14: закрыт | L14: 52.5712532849197 | M14: 37.8690034342148
A15: ПС 35/10 кВ Яковлево | B15: 1970 | C15: 2.5 | D15: 0.92 | E15: -0.92 | F15: 0.468 | G15: 0.351 | H15: 0 | J15: открыт | K15: закрыт | L15: 52.1285944455269 | M15: 38.5827525624266
A16: ПС 35/10 кВ Первомайская | B16: 1981 | C16: 2.5 | D16: 0.91 | E16: -0.91 | F16: 0.028 | G16: 0.021 | H16: 0 | J16: открыт | K16: закрыт | L16: 53.0767153199779 | M16: 39.6057742579006
A17: ПС 35/10 кВ Каменная Лубна | B17: 1970 | C17: 2.5 | D17: 1.24 | E17: -0.14 | F17: 0.071 | G17: 0.05325 | H17: 0 | J17: открыт | K17: закрыт | L17: 52.7655586195661 | M17: 39.1130959391351
A18: ПС 35/10 кВ Знаменка | B18: 1980 | C18: 2.5 | D18: 0.73 | E18: -0.73 | G18: 0 | H18: 0 | J18: открыт | K18: закрыт | L18: 53.2880316966625 | M18: 39.3973902575631
A19: ПС 35/10 кВ Пиково | B19: 1982 | C19: 2.5 | D19: 0.55 | E19: -0.21 | F19: 0.027 | G19: 0.02025 | H19: 0 | J19: открыт | K19: закрыт | L19: 53.2958883312812 | M19: 39.8288769946169
A20: ПС 35/10 кВ Никольское | B20: 1984 | C20: 4 | D20: 0.2727272727 | E20: -0.1727272727 | F20: 0.016 | G20: 0.012 | H20: 0 | J20: открыт | K20: закрыт | L20: 53.3727406250845 | M20: 39.9231647947107
A21: ПС 35/10 кВ Песковатка | B21: 1973 | C21: 1.6 | D21: 0.86 | E21: -0.64 | F21: 0.007 | G21: 0.00525 | H21: 0 | J21: открыт | K21: закрыт | L21: 52.5195641667129 | M21: 40.0323180632977
A22: ПС 35/6 кВ Новониколаевка | B22: 1974 | C22: 4 | D22: 0.74 | E22: -0.74 | F22: 0.015 | G22: 0.01125 | H22: 0 | J22: открыт | K22: закрыт | L22: 52.6306788353631 | M22: 39.4308758269795
A23: ПС 35/10 кВ Синдякино | B23: 1983 | C23: 2.5 | D23: 0.25 | E23: -0.25 | F23: 0.156 | G23: 0.117 | H23: 0 | J23: открыт | K23: закрыт | L23: 52.1159578794024 | M23: 39.3176328688655
A24: ПС 35/10 кВ Курино | B24: 1988 | C24: 2.5 | D24: 0.58 | E24: -0.48 | F24: 1.472 | G24: 1.104 | H24: 0 | J24: открыт | K24: закрыт | L24: 52.197765090447 | M24: 39.3671810051223
A25: ПС 35/10 кВ Новодубовое | B25: 1983 | C25: 2.5 | D25: 1.17 | E25: -1.17 | F25: 0.061 | G25: 0.04575 | H25: 0 | J25: открыт | K25: закрыт | L25: 52.3043236094129 | M25: 39.1871558621568
A26: ПС 35/10 кВ Березовка | B26: 1986 | C26: 2.5 | D26: 0 | E26: 0 | G26: 0 | H26: 0 | J26: открыт | K26: открыт | L26: 53.4339338986065 | M26: 38.8848558863036
A27: ПС 35/6 кВ Карьер | B27: 2009 | C27: 4 | D27: 0.04 | E27: -0.04 | G27: 0 | H27: 0 | J27: открыт | K27: открыт | L27: 52.6465972419779 | M27: 39.6934152000554
A28: ПС 110/35/10 кВ Чаплыгин | B28: 1964 | C28: 6.3 | D28: 4.7 | E28: -2.7 | F28: 0.675 | G28: 0.50625 | H28: 0 | J28: открыт | K28: закрыт | L28: 53.246796366032 | M28: 39.9525329887698
A29: ПС 110/6 кВ Агрегатная | B29: 1977 | C29: 16+16 | D29: 16.56 | E29: 1.01 | F29: 2.291 | G29: 1.71825 | H29: 0 | J29: открыт | K29: закрыт | L29: 52.6535505277202 | M29: 38.4427058472369
A30: ПС 110/6 кВ Западная | B30: 1999 | C30: 40+40 | D30: 24.3 | E30: 19 | F30: 6.442 | G30: 4.8315 | H30: 12.558 | J30: открыт | K30: открыт | L30: 52.5994546253252 | M30: 38.4643683068255
A31: ПС 110/10 кВ Кашары | B31: 1972 | C31: 2,5+6,3 | D31: 2.23 | E31: 1.355 | F31: 0.313 | G31: 0.23475 | H31: 1.042 | J31: открыт | K31: открыт | L31: 52.4746944848908 | M31: 38.9719646100004
A32: ПС 110/10кВ Тербунский гончар | B32: 2008 | C32: 25+25 | D32: 0.42 | E32: 25.83 | F32: 13.15 | G32: 9.8625 | H32: 12.68 | J32: открыт | K32: открыт | L32: 52.1066755003307 | M32: 38.2589461687148
A33: ПС 110/6 кВ Табак | B33: 1981 | C33: 16+16 | D33: 8.05 | E33: 11.85 | F33: 0.188 | G33: 0.141 | H33: 11.662 | J33: открыт | K33: открыт | L33: 52.628051190566 | M33: 38.5542240311774
A34: ПС 110/10 кВ Лукошкино | B34: 1990 | C34: 10+2,5 | D34: 0.94 | E34: 1.985 | F34: 0.035 | G34: 0.02625 | H34: 1.95 | J34: открыт | K34: открыт | L34: 52.6183283453015 | M34: 38.8066637501099
A35: ПС 110/10кВ Нива | B35: 1986 | C35: 10+10 | D35: 7.3 | E35: 5.8 | F35: 0.457 | G35: 0.34275 | H35: 5.343 | J35: открыт | K35: открыт | L35: 53.0257961468405 | M35: 39.1411711996949
A36: ПС 110/10 кВ Ольховец | B36: 1978 | C36: 2,5+2,5 | D36: 1.56 | E36: 1.065 | F36: 0.207 | G36: 0.15525 | H36: 0.858 | J36: открыт | K36: открыт | L36: 53.116157613602 | M36: 39.1942105207262
A37: ПС 110/10 кВ Куймань | B37: 1979 | C37: 2,5+2,5 | D37: 0.8 | E37: 1.825 | F37: 1.052 | G37: 0.789 | H37: 0.773 | J37: открыт | K37: открыт | L37: 52.86344115494 | M37: 39.2759624262646
A38: ПС 110/10 кВ Лутошкино | B38: 1983 | C38: 2,5+2,5 | D38: 0.09 | E38: 2.625 | F38: 0.023 | G38: 0.01725 | H38: 2.602 | J38: открыт | K38: открыт | L38: 52.7902315394858 | M38: 38.798486440786
A39: ПС 110/10 кВ Круглое | B39: 1989 | C39: 2,5+2,5 | D39: 0.4 | E39: 2.325 | G39: 0 | H39: 2.325 | J39: открыт | K39: открыт | L39: 53.1706696593029 | M39: 39.2650081919431
A40: ПС 110/10/6 кВ Юго-Западная | B40: 1982 | C40: 40+40 | D40: 42.2 | E40: 3 | F40: 23.725 | G40: 17.79375 | H40: 0 | J40: открыт | K40: закрыт | L40: 52.5898571538358 | M40: 39.5154976461141
A41: ПС 110/6 кВ Привокзальная | B41: 1970 | C41: 20+20+25 | D41: 45.14 | E41: -1.76 | F41: 0.357 | G41: 0.26775 | H41: 0 | I41: 2016 | J41: закрыт | K41: закрыт | L41: 52.6246042294447 | M41: 39.5514360980437
A42: ПС 110/10/6 кВ Южная | B42: 1978 | C42: 40+40 | D42: 42.04 | E42: 2.96 | F42: 4.871 | G42: 3.65325 | H42: 0 | J42: открыт | K42: закрыт | L42: 52.5866167884604 | M42: 39.596803352794
A43: ПС 110/6 кВ Ситовка | B43: 1983 | C43: 10+10 | D43: 3.79 | E43: 7.55 | G43: 0 | H43: 7.55 | J43: открыт | K43: открыт | L43: 52.6759469196564 | M43: 39.6218707112186
A44: ПС 110/6 кВ ЛТП | B44: 1987 | C44: 6,3+10 | D44: 2.49 | E44: 4.125 | F44: 0.014 | G44: 0.0105 | H44: 4.111 | J44: открыт | K44: открыт | L44: 52.6628866101015 | M44: 39.6114044866994
A45: ПС 110/6 кВ КПД | B45: 1987/2011 | C45: 10+16 | D45: 4.67 | E45: 5.83 | F45: 2.426 | G45: 1.8195 | H45: 3.404 | J45: открыт | K45: открыт | L45: 52.6475947747513 | M45: 39.6041773604874
A46: ПС 110/10 кВ Октябрьская | B46: 1997 | C46: 40+40 | D46: 27.82 | E46: 14.78 | F46: 0.648 | G46: 0.486 | H46: 14.132 | J46: открыт | K46: открыт | L46: 52.5764494255388 | M46: 39.5171354373216
A47: ПС 110/10 кВ Манежная | B47: 2010 | C47: 40+40 | D47: 1.04 | E47: 40.96 | F47: 39.501 | G47: 29.62575 | H47: 1.459 | J47: открыт | K47: открыт | L47: 52.5917451268018 | M47: 39.5811865921873
A48: ПС 110/10 кВ Университетская | B48: 2009 | C48: 40+40 | D48: 0.7 | E48: 41.3 | F48: 42.8 | G48: 32.1 | H48: 0 | J48: открыт | K48: закрыт | L48: 52.5949796968824 | M48: 39.4729196319163
A49: ПС 110/6 кВ Тепличная | B49: 1989 | C49: 15+15 | D49: 6.4 | E49: 10.55 | F49: 4.24 | G49: 3.18 | H49: 6.31 | J49: открыт | K49: открыт | L49: 52.6327076280048 | M49: 39.546736756446
A50: ПС 110/6 кВ Трубная-2 | B50: 2009 | C50: 25+25 | D50: 5 | E50: 21.25 | F50: 20.64 | G50: 15.48 | H50: 0.61 | J50: открыт | K50: открыт | L50: 52.6187090103373 | M50: 39.552076674228
A51: ПС 110/6 кВ ГПП-2 ЛТЗ | B51: 1986 | C51: 63+63 | D51: 14.13 | E51: 52.02 | F51: 7.275 | G51: 5.45625 | H51: 44.745 | J51: открыт | K51: открыт | L51: 52.5407199939185 | M51: 39.5801401609722
A52: ПС 35/10 кВ Авангард | B52: 1990 | C52: 4+4 | D52: 1.3 | E52: 4 | F52: 0.028 | G52: 0.021 | H52: 3.972 | J52: открыт | K52: открыт | L52: 52.5554639779839 | M52: 38.6950206572069
A53: ПС 35/10 кВ Афанасьево | B53: 1978 | C53: 2,5+2,5 | D53: 1.71 | E53: 0.915 | F53: 0.145 | G53: 0.10875 | H53: 0.77 | J53: открыт | K53: открыт | L53: 52.5747716598297 | M53: 38.2076765482435
A54: ПС 35/10 кВ Бабарыкино | B54: 1982 | C54: 2,5+2,5 | D54: 0.88 | E54: 2.355 | F54: 0.111 | G54: 0.08325 | H54: 2.244 | J54: открыт | K54: открыт | L54: 52.9336472539061 | M54: 38.2232740187004
A55: ПС 35/10 кВ Аврора | B55: 1981 | C55: 2,5+2,5 | D55: 1.33 | E55: 1.995 | F55: 0.187 | G55: 0.14025 | H55: 1.808 | J55: открыт | K55: открыт | L55: 52.3970154320664 | M55: 38.8253372484728
A56: ПС 35/10 кВ Б.Боёвка | B56: 1983 | C56: 2,5+2,5 | D56: 0.41 | E56: 2.365 | G56: 0 | H56: 2.365 | J56: открыт | K56: открыт | L56: 52.4054369548077 | M56: 38.5540805524847
A57: ПС 35/10 кВ Борки | B57: 1981 | C57: 2,5+2,5 | D57: 1.08 | E57: 1.545 | F57: 0.016 | G57: 0.012 | H57: 1.529 | J57: открыт | K57: открыт | L57: 52.1503493887351 | M57: 38.1062489666505
A58: ПС 35/6кВ Восточная | B58: 1966 | C58: 10+16 | D58: 7.51 | E58: 4.29 | F58: 0.73 | G58: 0.5475 | H58: 3.56 | J58: открыт | K58: открыт | L58: 52.6279978869399 | M58: 38.564505790682
A59: ПС 35/10 кВ Васильевка | B59: 1981 | C59: 2,5+2,5 | D59: 0.65 | E59: 2.275 | F59: 0.02 | G59: 0.015 | H59: 2.255 | J59: открыт | K59: открыт | L59: 51.9781510957345 | M59: 38.0193423929724
A60: ПС 35/10 кВ Воронец | B60: 1982 | C60: 4+4 | D60: 2.37 | E60: 2.33 | F60: 0.257 | G60: 0.19275 | H60: 2.073 | J60: открыт | K60: открыт | L60: 52.5339927444411 | M60: 38.4934995636393
A61: ПС 35/6 кВ Голиково | B61: 1974 | C61: 1,8+1,6 | D61: 0.81 | E61: 0.87 | F61: 0.062 | G61: 0.0465 | H61: 0.808 | J61: открыт | K61: открыт | L61: 52.6738140241752 | M61: 38.8146244963904
A62: ПС 35/10 кВ Гатище | B62: 1973 | C62: 2,5+2,5 | D62: 0.59 | E62: 2.035 | F62: 0.01 | G62: 0.0075 | H62: 2.025 | J62: открыт | K62: открыт | L62: 52.1608350549674 | M62: 38.0010817695499
A63: ПС 35/10 кВ Гнилуша | B63: 1973 | C63: 6,3+6,3 | D63: 2.24 | E63: 5.075 | F63: 0.111 | G63: 0.08325 | H63: 4.964 | J63: открыт | K63: открыт | L63: 52.32321879705 | M63: 39.0692579543072
A64: ПС 35/10кВ Грызлово | B64: 1973 | C64: 2,5+2,5 | D64: 0.99 | E64: 1.835 | G64: 0 | H64: 1.835 | J64: открыт | K64: открыт | L64: 52.4395476833466 | M64: 38.1858147853273
A65: ПС 35/10 кВ Жерновное | B65: 1994 | C65: 2,5+2,5 | D65: 0.26 | E65: 2.365 | F65: 0.412 | G65: 0.309 | H65: 1.953 | J65: открыт | K65: открыт | L65: 52.3064043727265 | M65: 38.495672071006
A66: ПС 35/10 кВ Задонск-сельск. | B66: 1968 | C66: 3,2+1,6 | D66: 2.24 | E66: -0.56 | F66: 0.47 | G66: 0.3525 | H66: 0 | I66: 2013 | J66: закрыт | K66: закрыт | L66: 52.3851069034602 | M66: 38.9269245446528
A67: ПС 35/10 кВ Захаровка | B67: 1984 | C67: 2,5+2,5 | D67: 0.56 | E67: 2.225 | F67: 0.02 | G67: 0.015 | H67: 2.205 | J67: открыт | K67: открыт | L67: 52.1000681242528 | M67: 37.9580362660224
A68: ПС 35/10 кВ Казаки | B68: 1992 | C68: 4+4 | D68: 1.83 | E68: 2.37 | F68: 0.249 | G68: 0.18675 | H68: 2.121 | J68: открыт | K68: открыт | L68: 52.601665901583 | M68: 38.2659587262969
A69: ПС 35/10 кВ Колесово | B69: 1999 | C69: 6,3+6,3 | D69: 3.05 | E69: 4.065 | F69: 0.366 | G69: 0.2745 | H69: 3.699 | J69: открыт | K69: открыт | L69: 52.467957414819 | M69: 38.8717600416978
A70: ПС 35/10 кВ Князево | B70: 1979 | C70: 2,5+2,5 | D70: 0.37 | E70: 2.255 | F70: 0.057 | G70: 0.04275 | H70: 2.198 | J70: открыт | K70: открыт | L70: 52.0092041255687 | M70: 38.3120319671956
A71: ПС 35/10 кВ Кириллово | B71: 1989 | C71: 2,5+2,5 | D71: 0.72 | E71: 2.055 | F71: 0.014 | G71: 0.0105 | H71: 2.041 | J71: открыт | K71: открыт | L71: 52.742250449486 | M71: 38.2058103617269
A72: ПС 35/10 кВ Ксизово | B72: 1988 | C72: 2,5+2,5 | D72: 0.26 | E72: 2.365 | F72: 0.05 | G72: 0.0375 | H72: 2.315 | J72: открыт | K72: открыт | L72: 52.3047706063873 | M72: 38.943724336909
A73: ПС 35/10 кВ Ламское | B73: 1966 | C73: 2,5+2,5 | D73: 1.89 | E73: 0.955 | F73: 0.04 | G73: 0.03 | H73: 0.915 | J73: открыт | K73: открыт | L73: 52.9566273241799 | M73: 38.0587727786928
A74: ПС 35/10 кВ Казачье | B74: 1990 | C74: 2,5+2,5 | D74: 0.42 | E74: 2.205 | F74: 0.237 | G74: 0.17775 | H74: 1.968 | J74: открыт | K74: открыт | L74: 52.3547263951253 | M74: 38.8808928671411
A75: ПС 35/10 кВ Лебяжье | B75: 1978 | C75: 2,5+1,6 | D75: 0.4 | E75: 1.28 | F75: 0.015 | G75: 0.01125 | H75: 1.265 | J75: открыт | K75: открыт | L75: 52.8702504249512 | M75: 37.9782969828135
A76: ПС 35/10 кВ Ломовец | B76: 1979 | C76: 1,6+2,5 | D76: 0.43 | E76: 1.25 | F76: 0.01 | G76: 0.0075 | H76: 1.24 | J76: открыт | K76: открыт | L76: 52.2513312037844 | M76: 38.5928171517355
A77: ПС 35/10 кВ Ольшанец | B77: 1979 | C77: 2,5+4 | D77: 1.43 | E77: 1.195 | F77: 0.051 | G77: 0.03825 | H77: 1.144 | J77: открыт | K77: открыт | L77: 52.2703117550213 | M77: 38.8105611602941
A78: ПС 35/10 кВ Плоское | B78: 1973 | C78: 4+4 | D78: 3.99 | E78: 1.01 | F78: 3.469 | G78: 2.60175 | H78: 0 | J78: открыт | K78: закрыт | L78: 52.7584468245313 | M78: 38.3666568778766
A79: ПС 35/10 кВ Стегаловка | B79: 1967 | C79: 2,5+3,2 | D79: 0.51 | E79: 2.215 | F79: 0.018 | G79: 0.0135 | H79: 2.197 | J79: открыт | K79: открыт | L79: 52.4050219951099 | M79: 38.3188400969633
A80: ПС 35/10 кВ Солидарность | B80: 1978 | C80: 4+4 | D80: 2.45 | E80: 2.95 | F80: 1.938 | G80: 1.4535 | H80: 1.012 | J80: открыт | K80: открыт | L80: 52.5947174843504 | M80: 38.5789854656937
A81: ПС 35/10 кВ Тимирязево | B81: 1986 | C81: 4+4 | D81: 0.97 | E81: 3.53 | F81: 0.189 | G81: 0.14175 | H81: 3.341 | J81: открыт | K81: открыт | L81: 52.3180848799492 | M81: 38.3278819715478
A82: ПС 35/10 кВ Талица | B82: 1969 | C82: 2,5+2,5 | D82: 1.35 | E82: 1.475 | F82: 0.167 | G82: 0.12525 | H82: 1.308 | J82: открыт | K82: открыт | L82: 52.7167446015476 | M82: 38.7076116164037
A83: ПС 35/10 кВ II-е Тербуны | B83: 1982 | C83: 2,5+2,5 | D83: 1.13 | E83: 1.495 | F83: 0.1 | G83: 0.075 | H83: 1.395 | J83: открыт | K83: открыт | L83: 52.1249662735499 | M83: 38.4799543269035
A84: ПС 35/10 кВ Тихий Дон | B84: 1987 | C84: 4+4 | D84: 0.54 | E84: 3.79 | F84: 0.11 | G84: 0.0825 | H84: 3.68 | J84: открыт | K84: открыт | L84: 52.6832500673729 | M84: 38.936710149447
A85: ПС 35/10 кВ Хитрово | B85: 1973 | C85: 6,3+6,3 | D85: 2.42 | E85: 4.195 | F85: 0.04 | G85: 0.03 | H85: 4.16 | J85: открыт | K85: открыт | L85: 52.4591685252601 | M85: 38.6362515189274
A86: ПС 35/10 кВ Чернава | B86: 1967 | C86: 2,5+2,5 | D86: 2 | E86: 0.625 | F86: 0.069 | G86: 0.05175 | H86: 0.556 | J86: открыт | K86: открыт | L86: 52.4967518763096 | M86: 38.0637704486141
A87: ПС 35/10 кВ Чернолес | B87: 1986 | C87: 2,5+2,5 | D87: 0.35 | E87: 2.275 | F87: 0.015 | G87: 0.01125 | H87: 2.26 | J87: открыт | K87: открыт | L87: 52.9260817588539 | M87: 38.4597733974286
A88: ПС 35/6 кВ ПС № 5 | B88: 1954 | C88: 6,3+3,2 | D88: 1.39 | E88: 1.97 | G88: 0 | H88: 1.97 | J88: открыт | K88: открыт | L88: 52.6269759064713 | M88: 39.0139669626504
A89: ПС 35/10 кВ Красное | B89: 1965 | C89: 4+4 | D89: 4.22 | E89: 1.48 | F89: 0.301 | G89: 0.22575 | H89: 1.179 | J89: открыт | K89: открыт | L89: 52.8506009732135 | M89: 38.7742452593793
A90: ПС 35/10 кВ Теплое | B90: 1992 | C90: 2,5+2,5 | D90: 1.090909091 | E90: 2.334090909 | F90: 0.017 | G90: 0.01275 | H90: 2.317090909 | J90: открыт | K90: открыт | L90: 53.2072358575215 | M90: 38.8958026449592
A91: ПС 35/10 кВ Данков-сельская | B91: 1966/2012 | C91: 6,3+6,3 | D91: 3.909090909 | E91: 4.305909091 | F91: 0.592 | G91: 0.444 | H91: 3.718909091 | J91: открыт | K91: открыт | L91: 53.2662632238608 | M91: 39.1338919512096
A92: ПС 35/10 кВ Колыбельская | B92: 1969 | C92: 2,5+2,5 | D92: 1.11 | E92: 1.515 | F92: 0.092 | G92: 0.069 | H92: 1.423 | J92: открыт | K92: открыт | L92: 53.0989926730346 | M92: 39.9119484733396
A93: ПС 35/10 кВ Топки | B93: 1997 | C93: 2,5+2,5 | D93: 0.65 | E93: 2.265 | F93: 0.02 | G93: 0.015 | H93: 2.245 | J93: открыт | K93: открыт | L93: 53.3503464116415 | M93: 39.5855577229596
A94: ПС 35/10 кВ Агроном | B94: 1968 | C94: 4+6,3 | D94: 1.9 | E94: 2.5 | F94: 0.069 | G94: 0.05175 | H94: 2.431 | J94: открыт | K94: открыт | L94: 53.030961707514 | M94: 39.0196577303286
A95: ПС 35/10 кВ Троекурово-совхозная | B95: 1970 | C95: 2,5+2,5 | D95: 2.02 | E95: 0.605 | F95: 1.262 | G95: 0.9465 | H95: 0 | J95: открыт | K95: закрыт | L95: 52.9775843443344 | M95: 38.9714056711296
A96: ПС 35/10 кВ Гагарино | B96: 1974 | C96: 1,8+1,8 | D96: 0.49 | E96: 1.6 | G96: 0 | H96: 1.6 | J96: открыт | K96: открыт | L96: 53.3406829912947 | M96: 39.7029783935529
A97: ПС 35/10 кВ Раненбург | B97: 1975 | C97: 1,6+1,6 | D97: 1.47 | E97: 0.21 | F97: 0.399 | G97: 0.29925 | H97: 0 | J97: открыт | K97: закрыт | L97: 53.2531596041981 | M97: 40.0064268005424
A98: ПС 35/10 кВ Сергиевка | B98: 1996 | C98: 2,5+2,5 | D98: 0.16 | E98: 2.465 | F98: 0.068 | G98: 0.051 | H98: 2.397 | J98: открыт | K98: открыт | L98: 53.0157198380114 | M98: 38.8455594472827
A99: ПС 35/10 кВ Дрезгалово | B99: 1976 | C99: 1,6+1,6 | D99: 1.09 | E99: 0.89 | F99: 0.024 | G99: 0.018 | H99: 0.866 | J99: открыт | K99: открыт | L99: 52.7643146500229 | M99: 38.793289112713
A100: ПС 35/10 кВ Долгое | B100: 1976 | C100: 2,5+2,5 | D100: 0.24 | E100: 2.385 | F100: 0.026 | G100: 0.0195 | H100: 2.359 | J100: открыт | K100: открыт | L100: 53.4509742166288 | M100: 39.0888047559182
A101: ПС 35/10 кВ Воскресеновка | B101: 1975 | C101: 1,6+1,6 | D101: 0.56 | E101: 1.12 | F101: 0.099 | G101: 0.07425 | H101: 1.021 | J101: открыт | K101: открыт | L101: 53.2004196568037 | M101: 38.727410939117
A102: ПС 35/10 кВ Сапрыкино | B102: 1977 | C102: 1,6+2,5 | D102: 0.64 | E102: 1.04 | F102: 0.12 | G102: 0.09 | H102: 0.92 | J102: открыт | K102: открыт | L102: 52.9811074026891 | M102: 38.7038874908454
A103: ПС 35/10 кВ Новополянье | B103: 1977 | C103: 2,5+2,5 | D103: 0.47 | E103: 2.155 | F103: 0.046 | G103: 0.0345 | H103: 2.109 | J103: открыт | K103: открыт | L103: 53.1859482721752 | M103: 39.8280662503093
A104: ПС 35/10 кВ Ведное | B104: 1978 | C104: 2,5+2,5 | D104: 0.76 | E104: 2.165 | F104: 0.014 | G104: 0.0105 | H104: 2.151 | J104: открыт | K104: открыт | L104: 53.4940158367293 | M104: 39.7902724025895
A105: ПС 35/10 кВ Бигильдино | B105: 1979 | C105: 2,5+2,5 | D105: 1.22 | E105: 2.005 | F105: 0.052 | G105: 0.039 | H105: 1.953 | J105: открыт | K105: открыт | L105: 53.3519436423209 | M105: 39.1501187748859
A106: ПС 35/10 кВ Культура | B106: 1979 | C106: 2,5+2,5 | D106: 1.04 | E106: 1.785 | F106: 0.078 | G106: 0.0585 | H106: 1.707 | J106: открыт | K106: открыт | L106: 53.0316810906413 | M106: 39.4314408120338
A107: ПС 35/10 кВ Борятино | B107: 1980 | C107: 2,5+2,5 | D107: 0.3090909091 | E107: 2.315909091 | F107: 0.006 | G107: 0.0045 | H107: 2.309909091 | J107: открыт | K107: открыт | L107: 53.3393788396775 | M107: 38.7533467115582
A108: ПС 35/10 кВ Б.Попово | B108: 1980 | C108: 2,5+2,5 | D108: 1.82 | E108: 1.105 | F108: 0.2 | G108: 0.15 | H108: 0.905 | J108: открыт | K108: открыт | L108: 52.916084487414 | M108: 39.0961908900579
A109: ПС 35/10 кВ Б. Избищи | B109: 1983 | C109: 2,5+2,5 | D109: 1.87 | E109: 1.755 | F109: 0.025 | G109: 0.01875 | H109: 1.73 | J109: открыт | K109: открыт | L109: 52.9490964512647 | M109: 39.3919282932421
A110: ПС 35/10 кВ Полибино | B110: 1985 | C110: 2,5+2,5 | D110: 0.2363636364 | E110: 2.388636364 | F110: 0.093 | G110: 0.06975 | H110: 2.295636364 | J110: открыт | K110: открыт | L110: 53.5135137151775 | M110: 38.9702229228205
A111: ПС 35/10 кВ Дубрава | B111: 1985 | C111: 2,5+2,5 | D111: 0.33 | E111: 2.295 | F111: 0.01 | G111: 0.0075 | H111: 2.285 | J111: открыт | K111: открыт | L111: 52.8928343131534 | M111: 38.6261297295594
A112: ПС 35/10 кВ Хрущево | B112: 1987 | C112: 2,5+2,5 | D112: 0.44 | E112: 2.185 | F112: 0.019 | G112: 0.01425 | H112: 2.166 | J112: открыт | K112: открыт | L112: 53.1316813316363 | M112: 38.9816199959201
A113: ПС 35/10 кВ Б. Верх | B113: 1988 | C113: 2,5+2,5 | D113: 0.91 | E113: 1.715 | F113: 0.03 | G113: 0.0225 | H113: 1.685 | J113: открыт | K113: открыт | L113: 53.1094749372983 | M113: 38.756379163884
A114: ПС 35/10 кВ Головинщино | B114: 1988 | C114: 2,5+2,5 | D114: 1.02 | E114: 1.605 | F114: 0.29 | G114: 0.2175 | H114: 1.315 | J114: открыт | K114: открыт | L114: 53.1969004192792 | M114: 39.6549530389204
A115: ПС 35/10 кВ Яблонево | B115: 1990 | C115: 2,5+2,5 | D115: 0.75 | E115: 1.875 | F115: 2.807 | G115: 2.10525 | H115: 0 | J115: открыт | K115: закрыт | L115: 52.8116913182408 | M115: 38.9226384642615
A116: ПС 35/10 кВ Политово | B116: 1991 | C116: 2,5+2,5 | D116: 0.91 | E116: 1.715 | F116: 0.015 | G116: 0.01125 | H116: 1.7 | J116: открыт | K116: открыт | L116: 53.3503911725405 | M116: 38.9499536773673
A117: ПС 35/10 кВ Комплекс | B117: 2006 | C117: 4+4 | D117: 1.22 | E117: 3.58 | G117: 0 | H117: 3.58 | J117: открыт | K117: открыт | L117: 53.2586983709845 | M117: 39.6135615121317
A118: ПС 35/10 кВ № 1 | B118: 1985 | C118: 4+4 | D118: 4.48 | E118: -0.28 | F118: 2.051 | G118: 1.53825 | H118: 0 | I118: 2017 | J118: закрыт | K118: закрыт | L118: 52.5414978240682 | M118: 39.7992414486201
A119: ПС 35/6 кВ № 2 | B119: 1954/2012 | C119: 2,5+1 | D119: 1.93 | E119: -0.88 | F119: 0.09 | G119: 0.0675 | H119: 0 | I119: 2018 | J119: закрыт | K119: закрыт | L119: 52.6375642161791 | M119: 39.4930345241364
A120: ПС 35/10 кВ № 3 | B120: 1968 | C120: 2,5+2,5 | D120: 2.39 | E120: 0.615 | F120: 1.504 | G120: 1.128 | H120: 0 | J120: открыт | K120: закрыт | L120: 52.5803381210763 | M120: 39.3508334557333
A121: ПС 35/6 кВ № 4 | B121: 1953 | C121: 4+4 | D121: 3.14 | E121: 1.91 | F121: 0.283 | G121: 0.21225 | H121: 1.627 | J121: открыт | K121: открыт | L121: 52.6873582365407 | M121: 39.4359861850541
A122: ПС 35/6 кВ Грязи-город | B122: 1966 | C122: 6,3+5,6 | D122: 5.84 | E122: 1.65 | F122: 0.602 | G122: 0.4515 | H122: 1.048 | J122: открыт | K122: открыт | L122: 52.4818739864321 | M122: 39.9612398539912
A123: ПС 35/10 кВ Бутырки | B123: 1968/2012 | C123: 5,6+6,3 | D123: 7.75 | E123: -1.87 | F123: 3.698 | G123: 2.7735 | H123: 0 | I123: 2018 | J123: закрыт | K123: закрыт | L123: 52.6543188029843 | M123: 39.8023052543494
A124: ПС 35/10 кВ Ярлуково | B124: 1972 | C124: 3,2+4 | D124: 4.74 | E124: -0.93 | F124: 1.043 | G124: 0.78225 | H124: 0 | I124: 2017 | J124: закрыт | K124: закрыт | L124: 52.5484187694008 | M124: 39.8452222291569
A125: ПС 35/10 кВ Княжья Байгора | B125: 1975 | C125: 1,6+1,6 | D125: 0.8 | E125: 0.99 | F125: 0.1 | G125: 0.075 | H125: 0.89 | J125: открыт | K125: открыт | L125: 52.3457468031625 | M125: 40.0121396197755
A126: ПС 35/10 кВ Правда | B126: 1984 | C126: 4+2,5 | D126: 1.36 | E126: 1.265 | F126: 0.05 | G126: 0.0375 | H126: 1.215 | J126: открыт | K126: открыт | L126: 52.4341652926498 | M126: 40.1378691012693
A127: ПС 35/10 кВ Красная Дубрава | B127: 1984 | C127: 2,5+2,5 | D127: 0.86 | E127: 2.395 | F127: 0.047 | G127: 0.03525 | H127: 2.348 | J127: открыт | K127: открыт | L127: 52.3874909336884 | M127: 39.9144238332961
A128: ПС 35/10 кВ Матыра | B128: 1973 | C128: 4+3,2 | D128: 4.24 | E128: -0.88 | F128: 0.015 | G128: 0.01125 | H128: 0 | I128: 2018 | J128: закрыт | K128: закрыт | L128: 52.545803807677 | M128: 39.7551952409661
A129: ПС 35/10 кВ Вперед | B129: 1973 | C129: 4+4 | D129: 0.37 | E129: 3.83 | F129: 0.13 | G129: 0.0975 | H129: 3.7 | J129: открыт | K129: открыт | L129: 52.4607874887549 | M129: 40.0969424131759
A130: ПС 35/10 кВ Малей | B130: 1993 | C130: 4+2,5 | D130: 0.38 | E130: 2.445 | F130: 0.617 | G130: 0.46275 | H130: 1.828 | J130: открыт | K130: открыт | L130: 52.5754592950912 | M130: 39.7900567545482
A131: ПС 35/10 кВ СХТ | B131: 1978 | C131: 2,5+1,6 | D131: 1.46 | E131: 0.72 | F131: 0.481 | G131: 0.36075 | H131: 0.239 | J131: открыт | K131: открыт | L131: 52.5158377828838 | M131: 39.9751340301161
A132: ПС 35/10 кВ Сошки | B132: 1988 | C132: 4+4 | D132: 0.77 | E132: 4.03 | F132: 0.088 | G132: 0.066 | H132: 3.942 | J132: открыт | K132: открыт | L132: 52.3427448591472 | M132: 39.7112365976393
A133: ПС 35/6 кВ Таволжанка | B133: 1995 | C133: 4+4 | D133: 5.68 | E133: -0.78 | F133: 1.32 | G133: 0.99 | H133: 0 | I133: 2018 | J133: закрыт | K133: закрыт | L133: 52.4927596353164 | M133: 39.9098858955515
A134: ПС 35/10 кВ Трубетчино | B134: 1965 | C134: 2,5+2,5 | D134: 1.59 | E134: 1.035 | F134: 0.08 | G134: 0.06 | H134: 0.955 | J134: открыт | K134: открыт | L134: 52.8914971844473 | M134: 39.5359369966189
A135: ПС 35/10 кВ Ратчино | B135: 1982 | C135: 2,5+2,5 | D135: 1.09 | E135: 1.535 | F135: 0.075 | G135: 0.05625 | H135: 1.46 | J135: открыт | K135: открыт | L135: 53.0350468518422 | M135: 39.8588347938855
A136: ПС 35/10 кВ Каликино | B136: 1971 | C136: 3,2+3,2 | D136: 2.15 | E136: 1.21 | F136: 0.093 | G136: 0.06975 | H136: 1.117 | J136: открыт | K136: открыт | L136: 52.9587565748467 | M136: 39.799968070966
A137: ПС 35/10 кВ Борисовка | B137: 1979 | C137: 4+2,5 | D137: 3.39 | E137: -0.765 | F137: 2.073 | G137: 1.55475 | H137: 0 | I137: 2018 | J137: закрыт | K137: закрыт | L137: 52.8126299022544 | M137: 39.9064214820044
A138: ПС 35/10 кВ Введенка | B138: 1971 | C138: 4+4 | D138: 4.12 | E138: 0.08 | F138: 5.911 | G138: 4.43325 | H138: 0 | J138: открыт | K138: закрыт | L138: 52.7344053494921 | M138: 39.6627663067305
A139: ПС 35/10 кВ Грязное | B139: 1976 | C139: 4+4 | D139: 1.3 | E139: 2.9 | F139: 1.184 | G139: 0.888 | H139: 1.716 | J139: открыт | K139: открыт | L139: 52.4104817421381 | M139: 39.4506066424625
A140: ПС 35/10 кВ Борино | B140: 1959 | C140: 4+4 | D140: 5.09 | E140: -0.03 | F140: 2.03 | G140: 1.5225 | H140: 0 | J140: открыт | K140: закрыт | L140: 52.4688851455606 | M140: 39.3706795364844
A141: ПС 35/10 кВ Частая Дубрава | B141: 1974 | C141: 2,5+2,5 | D141: 1.63 | E141: 2.435 | F141: 2.863 | G141: 2.14725 | H141: 0 | J141: открыт | K141: закрыт | L141: 52.5426961453674 | M141: 39.2772251118083
A142: ПС 35/10 кВ Троицкая | B142: 1974 | C142: 2,5+4 | D142: 2.79 | E142: -0.165 | F142: 0.732 | G142: 0.549 | H142: 0 | I142: 2017 | J142: закрыт | K142: закрыт | L142: 52.5010807530039 | M142: 39.5093375600795
A143: ПС 35/6 кВ Вешаловка | B143: 1978 | C143: 2,5+2,5 | D143: 0.99 | E143: 1.635 | F143: 0.198 | G143: 0.1485 | H143: 1.437 | J143: открыт | K143: открыт | L143: 52.748680992023 | M143: 39.3005415791656
A144: ПС 35/10 кВ Пружинки | B144: 1986 | C144: 2,5+2,5 | D144: 0.81 | E144: 1.815 | F144: 0.197 | G144: 0.14775 | H144: 1.618 | J144: открыт | K144: открыт | L144: 52.7222744417311 | M144: 39.1817700718053
A145: ПС 35/10 кВ Стебаево | B145: 1987 | C145: 2,5+2,5 | D145: 0.62 | E145: 2.345 | F145: 0.318 | G145: 0.2385 | H145: 2.027 | J145: открыт | K145: открыт | L145: 52.4072426557147 | M145: 39.2453301833298
A146: ПС 35/10 кВ Хлебопродукты | B146: 1990 | C146: 6,3+6,3 | D146: 5.75 | E146: 1.605 | F146: 0.738 | G146: 0.5535 | H146: 0.867 | J146: открыт | K146: открыт | L146: 52.545579153569 | M146: 39.4854557014233
A147: ПС 35/10 кВ Сенцово | B147: 1985 | C147: 10+10 | D147: 5.89 | E147: 4.87 | F147: 0.723 | G147: 0.54225 | H147: 4.147 | J147: открыт | K147: открыт | L147: 52.6367313305411 | M147: 39.3627959314803
A148: ПС 35/10 кВ Мясокомбинат | B148: 1975 | C148: 6,3+6,3 | D148: 4.97 | E148: 3.65 | F148: 0.778 | G148: 0.5835 | H148: 2.872 | J148: открыт | K148: открыт | L148: 52.5273298252285 | M148: 39.4929591213698
A149: ПС 35/6 кВ Птицефабрика | B149: 1972 | C149: 4+4 | D149: 1.79 | E149: 2.41 | F149: 2.491 | G149: 1.86825 | H149: 0 | J149: открыт | K149: закрыт | L149: 52.6682344198108 | M149: 39.4666664025028
A150: ПС 35/6 кВ Водозабор | B150: 1991 | C150: 10+10 | D150: 1.12 | E150: 9.38 | F150: 0.832 | G150: 0.624 | H150: 8.548 | J150: открыт | K150: открыт | L150: 52.6696732231267 | M150: 39.6924640594314
A151: ПС 35/10 кВ Петровская | B151: 1973 | C151: 2,5+4 | D151: 0.63 | E151: 1.995 | F151: 0.021 | G151: 0.01575 | H151: 1.974 | J151: открыт | K151: открыт | L151: 52.247397841412 | M151: 40.6425386978674
A152: ПС 35/10 кВ Лебедянка | B152: 1960 | C152: 2,5+2,5 | D152: 0.64 | E152: 1.985 | F152: 0.54 | G152: 0.405 | H152: 1.445 | J152: открыт | K152: открыт | L152: 52.0106269469092 | M152: 40.3460443865573
A153: ПС 35/10 кВ Новочеркутино | B153: 1974 | C153: 4+4 | D153: 1.26 | E153: 2.94 | F153: 0.41 | G153: 0.3075 | H153: 2.53 | J153: открыт | K153: открыт | L153: 52.3251006853863 | M153: 40.3971839960458
A154: ПС 35/10 кВ Ивановка | B154: 1978 | C154: 2,5+2,5 | D154: 0.9 | E154: 1.725 | F154: 0.055 | G154: 0.04125 | H154: 1.67 | J154: открыт | K154: открыт | L154: 52.3215113508017 | M154: 40.2364965774938
A155: ПС 35/10 кВ Поддубровка | B155: 1980 | C155: 2,5+2,5 | D155: 1.03 | E155: 2.035 | F155: 0.177 | G155: 0.13275 | H155: 1.858 | J155: открыт | K155: открыт | L155: 52.130016427507 | M155: 39.5445329049888
A156: ПС 35/10 кВ Плавица | B156: 1978 | C156: 1,6+1,6 | D156: 1.26 | E156: 0.42 | F156: 0.35 | G156: 0.2625 | H156: 0.07 | J156: открыт | K156: открыт | L156: 52.2081364807742 | M156: 40.3364873897501
A157: ПС 35/10 кВ Паршиновка | B157: 1980 | C157: 1,6+2,5 | D157: 0.21798 | E157: 1.46202 | F157: 0.007 | G157: 0.00525 | H157: 1.45502 | J157: открыт | K157: открыт | L157: 51.9898167425167 | M157: 40.5289218790788
A158: ПС 35/10 кВ Талицкий Чамлык | B158: 1972 | C158: 3,2+4 | D158: 1.69 | E158: 1.67 | F158: 0.024 | G158: 0.018 | H158: 1.646 | J158: открыт | K158: открыт | L158: 52.0439033743599 | M158: 40.5372675731968
A159: ПС 35/10 кВ Демшинка | B159: 1991 | C159: 2,5+2,5 | D159: 0.7 | E159: 1.925 | F159: 0.3 | G159: 0.225 | H159: 1.625 | J159: открыт | K159: открыт | L159: 52.1004527224073 | M159: 40.3268325147014
A160: ПС 35/10 кВ Березняговка | B160: 1969 | C160: 1,6+1,6 | D160: 1.2 | E160: 1.18 | F160: 0.03 | G160: 0.0225 | H160: 1.15 | J160: открыт | K160: открыт | L160: 52.1537308634375 | M160: 40.057713165357
A161: ПС 35/10 кВ Дмитриевка | B161: 1980 | C161: 2,5+2,5 | D161: 0.66 | E161: 2.165 | G161: 0 | H161: 2.165 | J161: открыт | K161: открыт | L161: 52.2840116987414 | M161: 39.9273783914538
A162: ПС 35/10 кВ Пашково | B162: 1977 | C162: 2,5+2,5 | D162: 1.66 | E162: 1.965 | F162: 0.032 | G162: 0.024 | H162: 1.933 | J162: открыт | K162: открыт | L162: 51.9984701991785 | M162: 39.9631758452293
A163: ПС 35/10 кВ Московка | B163: 1988 | C163: 1,6+1,6 | D163: 0.78 | E163: 0.9 | F163: 0.042 | G163: 0.0315 | H163: 0.858 | J163: открыт | K163: открыт | L163: 52.1512805175011 | M163: 39.6469840611373
A164: ПС 35/10 кВ Бочиновка | B164: 1993 | C164: 4+4 | D164: 2.51 | E164: 2.79 | F164: 1.686 | G164: 1.2645 | H164: 1.104 | J164: открыт | K164: открыт | L164: 52.0551413061779 | M164: 39.7532913133045
A165: ПС 35/10 кВ Федоровка | B165: 1979 | C165: 2,5+2,5 | D165: 0.54 | E165: 2.285 | F165: 0.13 | G165: 0.0975 | H165: 2.155 | J165: открыт | K165: открыт | L165: 52.1274504817887 | M165: 39.8994109690528
A166: ПС 35/10 кВ Куликово | B166: 1995 | C166: 2,5+2,5 | D166: 0.65 | E166: 1.975 | F166: 0.059 | G166: 0.04425 | H166: 1.916 | J166: открыт | K166: открыт | L166: 52.225646885356 | M166: 39.5719961856667
A167: ПС 35/10 кВ Конь-Колодезь | B167: 1982 | C167: 2,5+2,5 | D167: 1.12 | E167: 1.505 | F167: 0.732 | G167: 0.549 | H167: 0.773 | J167: открыт | K167: открыт | L167: 52.1326751359102 | M167: 39.1631365481394
A168: ПС 35/10 кВ Дмитряшевка | B168: 1977 | C168: 2,5+2,5 | D168: 0.42 | E168: 2.205 | F168: 0.08 | G168: 0.06 | H168: 2.125 | J168: открыт | K168: открыт | L168: 52.1787923064093 | M168: 38.9486054891325
A169: ПС 35/10 кВ Речная | B169: 1983 | C169: 4+4 | D169: 1.55 | E169: 2.65 | F169: 1.38 | G169: 1.035 | H169: 1.27 | J169: открыт | K169: открыт | L169: 52.1402326449722 | M169: 39.0663753887138
A170: ПС 35/10 кВ Негачевка | B170: 1975 | C170: 2,5+2,5 | D170: 0.47 | E170: 2.155 | F170: 0.017 | G170: 0.01275 | H170: 2.138 | J170: открыт | K170: открыт | L170: 52.0531094998947 | M170: 39.0248503065336
A171: ПС 35/10 кВ Карамышево | B171: 1999 | C171: 10+10 | D171: 0.78 | E171: 9.72 | F171: 0.267 | G171: 0.20025 | H171: 9.453 | J171: открыт | K171: открыт | L171: 52.3617974233206 | M171: 39.4997193751989
A172: ПС 35/10 кВ Тюшевка | B172: 1982 | C172: 4+4 | D172: 0.88 | E172: 3.32 | F172: 0.015 | G172: 0.01125 | H172: 3.305 | J172: открыт | K172: открыт | L172: 52.7597199639299 | M172: 39.4990373170864
A173: ПС 35/10 кВ Сселки | B173: 2009 | C173: 10+10 | D173: 0.38 | E173: 10.12 | F173: 6.286 | G173: 4.7145 | H173: 3.834 | J173: открыт | K173: открыт | L173: 52.6626787329002 | M173: 39.7375784085889
A174: ПС 110/35/10 кВ Тербуны-110 | B174: 1973 | C174: 10+10 | D174: 11.41 | E174: 0.09 | F174: 1.848 | G174: 1.386 | H174: 0 | J174: открыт | K174: закрыт | L174: 52.1515299155489 | M174: 38.3052643217394
A175: ПС 110/35/10 кВ Долгоруково | B175: 1970 | C175: 6,3+10 | D175: 10.9 | E175: -0.785 | F175: 1.577 | G175: 1.18275 | H175: 0 | I175: 2016 | J175: закрыт | K175: закрыт | L175: 52.3046328371681 | M175: 38.365686084183
A176: ПС 110/35/10 кВ Волово | B176: 1993 | C176: 10+10 | D176: 3.13 | E176: 7.88 | F176: 1.21 | G176: 0.9075 | H176: 6.67 | J176: открыт | K176: открыт | L176: 52.0329257634473 | M176: 37.879796475825
A177: ПС 110/35/10 кВ Измалково | B177: 1980 | C177: 10+10 | D177: 7.51 | E177: 4.34 | F177: 2.952 | G177: 2.214 | H177: 1.388 | J177: открыт | K177: открыт | L177: 52.6874343348974 | M177: 37.9767444800384
A178: ПС 110/35/10 кВ Гороховская | B178: 1974 | C178: 16+16 | D178: 13.51 | E178: 5.59 | F178: 3.33 | G178: 2.4975 | H178: 2.26 | J178: открыт | K178: открыт | L178: 52.3834207439759 | M178: 38.9552059392968
A179: ПС 110/35/10 кВ Донская | B179: 1966 | C179: 10+10 | D179: 4.67 | E179: 7.07 | F179: 1.587 | G179: 1.19025 | H179: 5.664 | J179: открыт | K179: открыт | L179: 52.6089936424621 | M179: 38.9801263936986
A180: ПС 110/35/10 кВ Лебедянь | B180: 1964 | C180: 16+16 | D180: 19.43 | E180: 8.67 | F180: 4.749 | G180: 3.56175 | H180: 3.921 | J180: открыт | K180: открыт | L180: 53.0061621574824 | M180: 39.1061476435234
A181: ПС 110/35/10 кВ Чаплыгин-новая | B181: 1996 | C181: 16+16 | D181: 8.77 | E181: 13.83 | F181: 0.294 | G181: 0.2205 | H181: 13.536 | J181: открыт | K181: открыт | L181: 53.228548925315 | M181: 39.9297119863202
A182: ПС 110/35/10 кВ Компрессорная | B182: 1981 | C182: 16+16 | D182: 6.5 | E182: 14.3 | F182: 4.266 | G182: 3.1995 | H182: 10.034 | J182: открыт | K182: открыт | L182: 53.1970435830594 | M182: 40.0028284814397
A183: ПС 110/35/10 кВ Россия | B183: 1981 | C183: 16+16 | D183: 6.46 | E183: 13.04 | F183: 6.376 | G183: 4.782 | H183: 6.664 | J183: открыт | K183: открыт | L183: 52.8602564444447 | M183: 38.7026556815198
A184: ПС 110/35/10 кВ Березовка | B184: 1983 | C184: 16+10 | D184: 3.4 | E184: 9.55 | F184: 0.249 | G184: 0.18675 | H184: 9.613 | J184: открыт | K184: открыт | L184: 53.4338338986065 | M184: 38.8847558863036
A185: ПС 110/35/10 кВ Астапово | B185: 1986 | C185: 16+16 | D185: 5.5 | E185: 16.1 | F185: 3.57 | G185: 2.6775 | H185: 12.53 | J185: открыт | K185: открыт | L185: 53.2110028557221 | M185: 39.4782269130365
A186: ПС 110/35/10 кВ Химическая | B186: 1986 | C186: 16+16 | D186: 6.61 | E186: 15.39 | F186: 7.941 | G186: 5.95575 | H186: 7.449 | J186: открыт | K186: открыт | L186: 53.2452784722464 | M186: 39.1909623696903
A187: ПС 110/35/6 кВ Бугор | B187: 1934/2012 | C187: 63+63 | D187: 29.59 | E187: 35.56 | F187: 18.152 | G187: 13.614 | H187: 17.408 | J187: открыт | K187: открыт | L187: 52.5910593450283 | M187: 39.5593254828985
A188: ПС 110/35/6 кВ Цементная | B188: 1963/2012 | C188: 40+32+63 | D188: 45.75 | E188: 29.72 | F188: 26.9565 | G188: 20.217375 | H188: 4.8935 | J188: открыт | K188: открыт | L188: 52.6563746002173 | M188: 39.6356523120047
A189: ПС 110/10/6 кВ Т-1, Т-2 Гидрооборудование | B189: 1976 | C189: 25+25 | D189: 8.66 | E189: 8.595 | F189: 0.589 | G189: 0.44175 | H189: 8.085 | J189: открыт | K189: открыт | L189: 52.4759051273509 | M189: 39.9352672866921
A190: ПС 110/35 кВ Т-3 Гидрооборудование | B190: 1976 | C190: 31.5 | D190: 6.77 | E190: -1.27 | F190: 0.6255 | G190: 0.469125 | H190: 0 | J190: открыт | K190: закрыт | L190: 52.47588051273509 | M190: 39.9351672866921
A191: ПС 110/35/10 кВ Усмань | B191: 1954 | C191: 16+16 | D191: 16.05 | E191: 6.58 | F191: 3.951 | G191: 2.96325 | H191: 2.629 | J191: открыт | K191: открыт | L191: 52.0700777242178 | M191: 39.7039397457518
A192: ПС 110/35/10 кВ Аксай | B192: 1984 | C192: 10+10 | D192: 3.42 | E192: 7.96 | F192: 0.544 | G192: 0.408 | H192: 7.636 | J192: открыт | K192: открыт | L192: 52.2750068766476 | M192: 39.7738448060333
A193: ПС 110/35/10 кВ Никольская | B193: 1976 | C193: 6,3+6,3 | D193: 5.65 | E193: 3.595 | F193: 0.4965 | G193: 0.372375 | H193: 3.0985 | J193: открыт | K193: открыт | L193: 52.1029292053373 | M193: 39.7345486735108
A194: ПС 110/35/10 кВ Хворостянка | B194: 1976 | C194: 10+16 | D194: 14.83 | E194: -2.77 | F194: 2.394 | G194: 1.7955 | H194: 0 | I194: 2018 | J194: закрыт | K194: закрыт | L194: 52.3217576254476 | M194: 40.2489701837281
A195: ПС 110/35/10 кВ Добринка | B195: 1976 | C195: 16+10 | D195: 9.16 | E195: 7.44 | F195: 0.7645 | G195: 0.573375 | H195: 6.6755 | J195: открыт | K195: открыт | L195: 52.1706893483561 | M195: 40.4441556865811
A196: ПС 110/35/10 кВ Верхняя Матренка | B196: 1977 | C196: 6,3+6,3 | D196: 2.51 | E196: 5.345 | F196: 0.54 | G196: 0.405 | H196: 4.805 | J196: открыт | K196: открыт | L196: 52.0486067901387 | M196: 40.1657296205465
A197: ПС 110/35/10 кВ Казинка | B197: 1979 | C197: 16+16 | D197: 15.76 | E197: 8.76 | F197: 5.6635 | G197: 4.247625 | H197: 3.0965 | J197: открыт | K197: открыт | L197: 52.5278730990253 | M197: 39.8076857831775
A198: ПС 110/35/10 кВ Доброе | B198: 1983 | C198: 16+16 | D198: 12.45 | E198: 8.95 | F198: 4.058 | G198: 3.0435 | H198: 4.892 | J198: открыт | K198: открыт | L198: 52.8432798512822 | M198: 39.7955231595461
A199: ПС 110/35/6 кВ Новая Деревня | B199: 1973 | C199: 10+6,3 | D199: 9.9 | E199: -0.365 | F199: 2.1715 | G199: 1.628625 | H199: 0 | I199: 2016 | J199: закрыт | K199: закрыт | L199: 52.737417118238 | M199: 39.415152267449
A200: ПС 110/35/6 кВ Вербилово | B200: 1978 | C200: 10+6,3 | D200: 3.59 | E200: 5.53 | F200: 1.582 | G200: 1.1865 | H200: 3.948 | J200: открыт | K200: открыт | L200: 52.3083753749925 | M200: 39.3767132900328
A201: ПС 110/35/10 кВ Хлевное | B201: 1981 | C201: 16+16 | D201: 13.94 | E201: 4.66 | F201: 5.933 | G201: 4.44975 | H201: 0 | J201: открыт | K201: закрыт | L201: 52.1752847129628 | M201: 39.1083237793929
A202: ПС 110/35/10 кВ Набережное | B202: 1973 | C202: 6,3+10 | D202: 3.02 | E202: 4.8 | F202: 0.207 | G202: 0.15525 | H202: 4.593 | J202: открыт | K202: открыт | L202: 51.984302952947 | M202: 38.1191689789719
A203: ПС 110/35/10 кВ Троекурово | B203: 1998 | C203: 10+6,3 | D203: 1.1 | E203: 6.32 | F203: 0.041 | G203: 0.03075 | H203: 6.279 | J203: открыт | K203: открыт | L203: 53.4096287002666 | M203: 39.6929801549621

Sheet Свод тек. дефицит
A1: Перечень закрытых центров питания ОАО "МРСК Центра" по итогам зимнего замера максимума нагрузки 2012 г. (текущий дефицит мощности).
A2: № п/п | B2: Наименование объекта центра питания, класс напряжения | C2: Установленная мощность трансформаторов Sуст. с указанием их количества, шт/ МВА | E2: Текущий дефицит
A3: Липецкэнерго
A4: 1 | B4: ПС 110/10 кВ Двуречки | C4: 6.3 | D4: 6.3 | E4: -1.93
A5: 2 | B5: ПС 35/10 кВ Кр.Пальна | C5: 3.2 | D5: 3.2 | E5: -0.39
A6: 3 | B6: ПС 35/10 кВ Каменка | C6: 2.5 | D6: 2.5 | E6: -0.65
A7: 4 | B7: ПС 35/10 кВ Красотыновка | C7: 2.5 | D7: 2.5 | E7: -0.5
A8: 5 | B8: ПС 35/10 кВ Панкратовка | C8: 2.5 | D8: 2.5 | E8: -0.71
A9: 6 | B9: ПС 35/10 кВ Преображенье | C9: 2.5 | D9: 2.5 | E9: -0.48
A10: 7 | B10: ПС 35/10 кВ Яковлево | C10: 2.5 | D10: 2.5 | E10: -0.92
A11: 8 | B11: ПС 35/10 кВ Первомайская | C11: 2.5 | D11: 2.5 | E11: -0.91
A12: 9 | B12: ПС 35/10 кВ Каменная Лубна | C12: 2.5 | D12: 2.5 | E12: -0.14
A13: 10 | B13: ПС 35/10 кВ Знаменка | C13: 2.5 | D13: 2.5 | E13: -0.73
A14: 11 | B14: ПС 35/10 кВ Пиково | C14: 2.5 | D14: 2.5 | E14: -0.21
A15: 12 | B15: ПС 35/10 кВ Никольское | C15: 4 | D15: 4 | E15: -0.17
A16: 13 | B16: ПС 35/10 кВ Песковатка | C16: 1.6 | D16: 1.6 | E16: -0.64
A17: 14 | B17: ПС 35/6 кВ Новониколаевка | C17: 4 | D17: 4 | E17: -0.74
A18: 15 | B18: ПС 35/10 кВ Синдякино | C18: 2.5 | D18: 2.5 | E18: -0.25
A19: 16 | B19: ПС 35/10 кВ Курино | C19: 2.5 | D19: 2.5 | E19: -0.48
A20: 17 | B20: ПС 35/10 кВ Новодубовое | C20: 2.5 | D20: 2.5 | E20: -1.17
A21: 18 | B21: ПС 110/35/10 кВ Чаплыгин | C21: 6.3 | D21: 6.3 | E21: -2.7
A22: 19 | B22: ПС 110/6 кВ Привокзальная | C22: 20+20+25 | D22: 65 | E22: -1.76
A23: 20 | B23: ПС 35/10 кВ Задонск-сельск. | C23: 3,2+1,6 | D23: =3.2+1.6 -> 4.8 | E23: -0.56
A24: 21 | B24: ПС 35/10 кВ № 1 | C24: 4+4 | D24: 8 | E24: -0.28
A25: 22 | B25: ПС 35/6 кВ № 2 | C25: 2,5+1 | D25: 3.5 | E25: -0.88
A26: 23 | B26: ПС 35/10 кВ Бутырки | C26: 5,6+6,3 | D26: 11.9 | E26: -1.87
A27: 24 | B27: ПС 35/10 кВ Ярлуково | C27: 3,2+4 | D27: =3.2+4 -> 7.2 | E27: -0.93
A28: 25 | B28: ПС 35/10 кВ Матыра | C28: 4+3,2 | D28: 7.2 | E28: -0.88
A29: 26 | B29: ПС 35/6 кВ Таволжанка | C29: 4+4 | D29: =4+4 -> 8 | E29: -0.78
A30: 27 | B30: ПС 35/10 кВ Борисовка | C30: 4+2,5 | D30: 6.5 | E30: -0.77
A31: 28 | B31: ПС 35/10 кВ Троицкая | C31: 2,5+4 | D31: 6.5 | E31: -0.17
A32: 29 | B32: ПС 110/35/10 кВ Долгоруково | C32: 6,3+10 | D32: =6.3+10 -> 16.3 | E32: -0.78
B33: Ном. Мощность СН, МВА | C33: 6,3+10
B34: Ном. мощность НН, МВА | C34: 6,3+10
A35: 30 | B35: ПС 110/35 кВ Т-3 Гидрооборудование | C35: 31.5 | D35: 31.5 | E35: -1.27
A36: 31 | B36: ПС 110/35/10 кВ Хворостянка | C36: 10+16 | D36: =10+16 -> 26 | E36: -2.77
B37: Ном. Мощность СН, МВА | C37: 10+16
B38: Ном. мощность НН, МВА | C38: 10+16
A39: 32 | B39: ПС 110/35/6 кВ Новая Деревня | C39: 10+6,3 | D39: =10+6.3 -> 16.3 | E39: -0.37
B40: Ном. Мощность СН, МВА | C40: 10+6,3
B41: Ном. мощность НН, МВА | C41: 10+6,3
A42: Итого текущий дефицит (зима) | C42: =SUM(D4:D41) -> 274.1 | E42: =SUM(E4:E41) -> -27.79

Sheet Свод ожид. дефицит
A1: Перечень закрытых центров питания ОАО "МРСК Центра" по итогам зимнего замера максимума нагрузки 2012 г. (ожидаемый дефицит мощности).
A2: № п/п | B2: Наименование объекта центра питания, класс напряжения | C2: Установленная мощность трансформаторов Sуст. с указанием их количества, шт/ МВА | E2: Ожидаемый дефицит
A3: Липецкэнерго
A4: 1 | B4: ПС 110/10кВ Лев Толстой | C4: 10 | D4: 10 | E4: -0.82
A5: 2 | B5: ПС 110/10 кВ Двуречки | C5: 6.3 | D5: 6.3 | E5: -2.97
A6: 3 | B6: ПС 35/10 кВ Кр.Пальна | C6: 3.2 | D6: 3.2 | E6: -0.91
A7: 4 | B7: ПС 35/10 кВ Каменка | C7: 2.5 | D7: 2.5 | E7: -0.98
A8: 5 | B8: ПС 35/10 кВ Красотыновка | C8: 2.5 | D8: 2.5 | E8: -1.04
A9: 6 | B9: ПС 35/10 кВ Панкратовка | C9: 2.5 | D9: 2.5 | E9: -0.73
A10: 7 | B10: ПС 35/10 кВ Преображенье | C10: 2.5 | D10: 2.5 | E10: -0.49
A11: 8 | B11: ПС 35/10 кВ Яковлево | C11: 2.5 | D11: 2.5 | E11: -1.39
A12: 9 | B12: ПС 35/10 кВ Первомайская | C12: 2.5 | D12: 2.5 | E12: -0.94
A13: 10 | B13: ПС 35/10 кВ Каменная Лубна | C13: 2.5 | D13: 2.5 | E13: -0.21
A14: 11 | B14: ПС 35/10 кВ Знаменка | C14: 2.5 | D14: 2.5 | E14: -0.73
A15: 12 | B15: ПС 35/10 кВ Пиково | C15: 2.5 | D15: 2.5 | E15: -0.24
A16: 13 | B16: ПС 35/10 кВ Никольское | C16: 4 | D16: 4 | E16: -0.19
A17: 14 | B17: ПС 35/10 кВ Песковатка | C17: 1.6 | D17: 1.6 | E17: -0.65
A18: 15 | B18: ПС 35/6 кВ Новониколаевка | C18: 4 | D18: 4 | E18: -0.76
A19: 16 | B19: ПС 35/10 кВ Синдякино | C19: 2.5 | D19: 2.5 | E19: -0.41
A20: 17 | B20: ПС 35/10 кВ Курино | C20: 2.5 | D20: 2.5 | E20: -1.95
A21: 18 | B21: ПС 35/10 кВ Новодубовое | C21: 2.5 | D21: 2.5 | E21: -1.23
A22: 19 | B22: ПС 110/35/10 кВ Чаплыгин | C22: 6.3 | D22: 6.3 | E22: -3.38
A23: 20 | B23: ПС 110/6 кВ Агрегатная | C23: 16+16 | D23: =16+16 -> 32 | E23: -1.28
A24: 21 | B24: ПС 110/10/6 кВ Юго-Западная | C24: 40+40 | D24: =40+40 -> 80 | E24: -20.73
A25: 22 | B25: ПС 110/6 кВ Привокзальная | C25: 20+20+25 | D25: =20+20+25 -> 65 | E25: -2.12
A26: 23 | B26: ПС 110/10/6 кВ Южная | C26: 40+40 | D26: =40+40 -> 80 | E26: -1.91
A27: 24 | B27: ПС 110/10 кВ Университетская | C27: 40+40 | D27: =40+40 -> 80 | E27: -1.5
A28: 25 | B28: ПС 35/10 кВ Задонск-сельск. | C28: 3,2+1,6 | D28: =3.2+1.6 -> 4.8 | E28: -1.03
A29: 26 | B29: ПС 35/10 кВ Плоское | C29: 4+4 | D29: =4+4 -> 8 | E29: -2.46
A30: 27 | B30: ПС 35/10 кВ Троекурово-совхозная | C30: 2,5+2,5 | D30: =2.5+2.5 -> 5 | E30: -0.66
A31: 28 | B31: ПС 35/10 кВ Раненбург | C31: 1,6+1,6 | D31: =1.6+1.6 -> 3.2 | E31: -0.19
A32: 29 | B32: ПС 35/10 кВ Яблоневое | C32: 2,5+2,5 | D32: =2.5+2.5 -> 5 | E32: -0.93
A33: 30 | B33: ПС 35/10 кВ № 1 | C33: 4+4 | D33: =4+4 -> 8 | E33: -2.33
A34: 31 | B34: ПС 35/6 кВ № 2 | C34: 2,5+1 | D34: =2.5+1 -> 3.5 | E34: -0.97
A35: 32 | B35: ПС 35/10 кВ № 3 | C35: 2,5+2,5 | D35: =2.5+2.5 -> 5 | E35: -0.89
A36: 33 | B36: ПС 35/10 кВ Бутырки | C36: 5,6+6,3 | D36: =5.6+6.3 -> 11.9 | E36: -5.57
A37: 34 | B37: ПС 35/10 кВ Ярлуково | C37: 3,2+4 | D37: =3.2+4 -> 7.2 | E37: -1.97
A38: 35 | B38: ПС 35/10 кВ Матыра | C38: 4+3,2 | D38: =4+3.2 -> 7.2 | E38: -0.9
A39: 36 | B39: ПС 35/6 кВ Таволжанка | C39: 4+4 | D39: =4+4 -> 8 | E39: -2.1
A40: 37 | B40: ПС 35/10 кВ Борисовка | C40: 4+2,5 | D40: =4+2.5 -> 6.5 | E40: -2.84
A41: 38 | B41: ПС 35/10 кВ Введенка | C41: 4+4 | D41: =4+4 -> 8 | E41: -5.83
A42: 39 | B42: ПС 35/10 кВ Борино | C42: 4+4 | D42: =4+4 -> 8 | E42: -2.06
A43: 40 | B43: ПС 35/10 кВ Частая Дубрава | C43: 2,5+2,5 | D43: =2.5+2.5 -> 5 | E43: -0.43
A44: 41 | B44: ПС 35/10 кВ Троицкая | C44: 2,5+4 | D44: =2.5+4 -> 6.5 | E44: -0.9
A45: 42 | B45: ПС 35/6 кВ Птицефабрика | C45: 4+4 | D45: =4+4 -> 8 | E45: -0.08
A46: 43 | B46: ПС 110/35/10 кВ Тербуны-110 | C46: 10+10 | D46: =10+10 -> 20 | E46: -1.76
B47: Ном. Мощность СН, МВА | C47: 10+10
B48: Ном. мощность НН, МВА | C48: 10+10
A49: 44 | B49: ПС 110/35/10 кВ Долгоруково | C49: 6,3+10 | D49: =6.3+10 -> 16.3 | E49: -2.36
B50: Ном. Мощность СН, МВА | C50: 6,3+10
B51: Ном. мощность НН, МВА | C51: 6,3+10
A52: 45 | B52: ПС 110/35 кВ Т-3 Гидрооборудование | C52: 31.5 | D52: 31.5 | E52: -1.9
A53: 46 | B53: ПС 110/35/10 кВ Хворостянка | C53: 10+16 | D53: =10+16 -> 26 | E53: -5.16
B54: Ном. Мощность СН, МВА | C54: 10+16
B55: Ном. мощность НН, МВА | C55: 10+16
A56: 47 | B56: ПС 110/35/6 кВ Новая Деревня | C56: 10+6,3 | D56: =10+6.3 -> 16.3 | E56: -2.54
B57: Ном. Мощность СН, МВА | C57: 10+6,3
B58: Ном. мощность НН, МВА | C58: 10+6,3
A59: 48 | B59: ПС 110/35/10 кВ Хлевное | C59: 16+16 | D59: =16+16 -> 32 | E59: -1.27
B60: Ном. Мощность СН, МВА | C60: 16+16
B61: Ном. мощность НН, МВА | C61: 16+16
A62: Итого ожидаемый дефицит (зима) | C62: =SUM(D4:D61) -> 663.3 | E62: =SUM(E4:E61) -> -94.69
